{"text_format":"1","workbook":"xlsx","n_sheets":3,"sheets":["Списки","Расход запчастей","Справка по расходу запчастей"],"not_rendered":{"charts":0,"images":0,"macros":1,"external_links":0,"defined_names":0,"comments":0,"pivot_tables":0},"unopened":[],"bounds":{"document_bytes":16777216,"sheet_cells":100000,"rows_first":2000,"rows_last":500,"rows_between":2000,"halvings":0,"cell_chars":16384,"cell_head_chars":4096},"cells_cut":0,"cells_raw":0,"read":"whole","date_system":"1900"}

{"sheet":"Списки","index":0,"n_rows":25,"n_cols":6,"rows_kept":25,"cut":false,"hidden":false,"merged":[]}
[1,"ООО \"Поставщик №2\"",null,null,"А 111 АА","январь"]
[2,"ААА \"Недопоставщик №0\"",null,null,"Б 222 ББ","февраль"]
[3,"УУУ \"Постааааааааааааааааааааааааааавщик №21\"",null,null,"В 333 ВВ","март"]
[4,"ООО \"Межрегион-Газ\""]
[5]
[6]
[7]
[8]
[9]
[10]
[11]
[12]
[13]
[14]
[15]
[16]
[17]
[18]
[19]
[20]
[21]
[22]
[23]
[24]
[25]

{"sheet":"Расход запчастей","index":1,"n_rows":1002,"n_cols":27,"rows_kept":1002,"cut":false,"hidden":false,"merged":[[0,26,1,26],[0,7,0,8],[0,5,1,5],[0,6,1,6],[0,0,1,0],[0,1,1,1],[0,2,1,2],[0,3,1,3],[0,4,1,4]]}
["Месяц списания","Гос. номер АТС","Наименование запчасти","Кол-во","Цена","Сумма","Поставщик","По приходному документу",null,null,null,null,null,null,null,null,null,null,null,null,null,null,null,null,null,null,"Уникальный номер документа"]
[null,null,null,null,null,null,null,"№","от"]
["январь","А 111 АА","прокладка",1,123,{"$f":"$D3*$E3","v":123},"ООО \"Поставщик №2\"",75,"2012-01-01",null,null,null,null,null,null,null,null,null,null,null,null,null,null,null,null,null,{"$f":"INDEX(H3:H1003,SMALL(IF(MATCH(H3:H1002,H3:H1002,0)=ROW(H3:H1002)-2,ROW(H3:H1002)-2,ROWS(H3:H1002)+1),ROW(H3:H1003)-2),1,1)","v":75}]
["январь",{"$f":"$B3","v":"А 111 АА"},"шина",2,325.02,{"$f":"$D4*$E4","v":650.04},"ААА \"Недопоставщик №0\"","988/852","2012-01-05",null,null,null,null,null,null,null,null,null,null,null,null,null,null,null,null,null,"988/852"]
[{"$f":"$A4","v":"январь"},"А 111 АА","а/шина",3,233,699,{"$f":"IF($C5>0,$G4,\"\")","v":"ААА \"Недопоставщик №0\""},{"$f":"IF($C5>0,$H4,\"\")","v":"988/852"},{"$f":"IF($C5>0,$I4,\"\")","v":"2012-01-05"},null,null,null,null,null,null,null,null,null,null,null,null,null,null,null,null,null,"888"]
["февраль","А 111 АА","руль",1.5,2,3,"ООО \"Межрегион-Газ\"","888","2012-02-02",null,null,null,null,null,null,null,null,null,null,null,null,null,null,null,null,null,""]
["февраль","Б 222 ББ","оплетка",2,4,8,{"$f":"IF($C7>0,$G6,\"\")","v":"ООО \"Межрегион-Газ\""},"888","2012-02-02",null,null,null,null,null,null,null,null,null,null,null,null,null,null,null,null,null,0]
["февраль","В 333 ВВ","кузов",2,23,46,"УУУ \"Постааааааааааааааааааааааааааавщик №21\"","888","2012-02-02",null,null,null,null,null,null,null,null,null,null,null,null,null,null,null,null,null,0]
["февраль",null,null,null,null,0,"","","",null,null,null,null,null,null,null,null,null,null,null,null,null,null,null,null,null,0]
["февраль",null,null,null,null,0,"","","",null,null,null,null,null,null,null,null,null,null,null,null,null,null,null,null,null,0]
["февраль",null,null,null,null,0,"","","",null,null,null,null,null,null,null,null,null,null,null,null,null,null,null,null,null,0]
["февраль",null,null,null,null,0,"","","",null,null,null,null,null,null,null,null,null,null,null,null,null,null,null,null,null,0]
["февраль",null,null,null,null,0,"","","",null,null,null,null,null,null,null,null,null,null,null,null,null,null,null,null,null,0]
["февраль",null,null,null,null,0,"","","",null,null,null,null,null,null,null,null,null,null,null,null,null,null,null,null,null,0]
["февраль",null,null,null,null,0,"","","",null,null,null,null,null,null,null,null,null,null,null,null,null,null,null,null,null,0]
["февраль",null,null,null,null,0,"","","",null,null,null,null,null,null,null,null,null,null,null,null,null,null,null,null,null,0]
["февраль",null,null,null,null,0,"","","",null,null,null,null,null,null,null,null,null,null,null,null,null,null,null,null,null,0]
["февраль",null,null,null,null,0,"","","",null,null,null,null,null,null,null,null,null,null,null,null,null,null,null,null,null,0]
["февраль",null,null,null,null,0,"","","",null,null,null,null,null,null,null,null,null,null,null,null,null,null,null,null,null,0]
["февраль",null,null,null,null,0,"","","",null,null,null,null,null,null,null,null,null,null,null,null,null,null,null,null,null,0]
["февраль",null,null,null,null,0,"","","",null,null,null,null,null,null,null,null,null,null,null,null,null,null,null,null,null,0]
["февраль",null,null,null,null,0,"","","",null,null,null,null,null,null,null,null,null,null,null,null,null,null,null,null,null,0]
["февраль",null,null,null,null,0,"","","",null,null,null,null,null,null,null,null,null,null,null,null,null,null,null,null,null,0]
["февраль",null,null,null,null,0,"","","",null,null,null,null,null,null,null,null,null,null,null,null,null,null,null,null,null,0]
["февраль",null,null,null,null,0,"","","",null,null,null,null,null,null,null,null,null,null,null,null,null,null,null,null,null,0]
["февраль",null,null,null,null,0,"","","",null,null,null,null,null,null,null,null,null,null,null,null,null,null,null,null,null,0]
["февраль",null,null,null,null,0,"","","",null,null,null,null,null,null,null,null,null,null,null,null,null,null,null,null,null,0]
["февраль",null,null,null,null,0,"","","",null,null,null,null,null,null,null,null,null,null,null,null,null,null,null,null,null,0]
["февраль",null,null,null,null,0,"","","",null,null,null,null,null,null,null,null,null,null,null,null,null,null,null,null,null,0]
["февраль",null,null,null,null,0,"","","",null,null,null,null,null,null,null,null,null,null,null,null,null,null,null,null,null,0]
["февраль",null,null,null,null,0,"","","",null,null,null,null,null,null,null,null,null,null,null,null,null,null,null,null,null,0]
["февраль",null,null,null,null,0,"","","",null,null,null,null,null,null,null,null,null,null,null,null,null,null,null,null,null,0]
["февраль",null,null,null,null,0,"","","",null,null,null,null,null,null,null,null,null,null,null,null,null,null,null,null,null,0]
["февраль",null,null,null,null,0,"","","",null,null,null,null,null,null,null,null,null,null,null,null,null,null,null,null,null,0]
["февраль",null,null,null,null,0,"","","",null,null,null,null,null,null,null,null,null,null,null,null,null,null,null,null,null,0]
["февраль",null,null,null,null,0,"","","",null,null,null,null,null,null,null,null,null,null,null,null,null,null,null,null,null,0]
["февраль",null,null,null,null,0,"","","",null,null,null,null,null,null,null,null,null,null,null,null,null,null,null,null,null,0]
["февраль",null,null,null,null,0,"","","",null,null,null,null,null,null,null,null,null,null,null,null,null,null,null,null,null,0]
["февраль",null,null,null,null,0,{"$f":"IF($C39>0,$G38,\"\")","v":""},"","",null,null,null,null,null,null,null,null,null,null,null,null,null,null,null,null,null,0]
["февраль",null,null,null,null,0,"","","",null,null,null,null,null,null,null,null,null,null,null,null,null,null,null,null,null,0]
["февраль",null,null,null,null,0,"","","",null,null,null,null,null,null,null,null,null,null,null,null,null,null,null,null,null,0]
["февраль",null,null,null,null,0,"","","",null,null,null,null,null,null,null,null,null,null,null,null,null,null,null,null,null,0]
["февраль",null,null,null,null,0,"","","",null,null,null,null,null,null,null,null,null,null,null,null,null,null,null,null,null,0]
["февраль",null,null,null,null,0,"","","",null,null,null,null,null,null,null,null,null,null,null,null,null,null,null,null,null,0]
["февраль",null,null,null,null,0,"","","",null,null,null,null,null,null,null,null,null,null,null,null,null,null,null,null,null,0]
["февраль",null,null,null,null,0,"","","",null,null,null,null,null,null,null,null,null,null,null,null,null,null,null,null,null,0]
["февраль",null,null,null,null,0,"","","",null,null,null,null,null,null,null,null,null,null,null,null,null,null,null,null,null,0]
["февраль",null,null,null,null,0,"","","",null,null,null,null,null,null,null,null,null,null,null,null,null,null,null,null,null,0]
["февраль",null,null,null,null,0,"","","",null,null,null,null,null,null,null,null,null,null,null,null,null,null,null,null,null,0]
["февраль",null,null,null,null,0,"","","",null,null,null,null,null,null,null,null,null,null,null,null,null,null,null,null,null,0]
["февраль",null,null,null,null,0,"","","",null,null,null,null,null,null,null,null,null,null,null,null,null,null,null,null,null,0]
["февраль",null,null,null,null,0,"","","",null,null,null,null,null,null,null,null,null,null,null,null,null,null,null,null,null,0]
["февраль",null,null,null,null,0,"","","",null,null,null,null,null,null,null,null,null,null,null,null,null,null,null,null,null,0]
["февраль",null,null,null,null,0,"","","",null,null,null,null,null,null,null,null,null,null,null,null,null,null,null,null,null,0]
["февраль",null,null,null,null,0,"","","",null,null,null,null,null,null,null,null,null,null,null,null,null,null,null,null,null,0]
["февраль",null,null,null,null,0,"","","",null,null,null,null,null,null,null,null,null,null,null,null,null,null,null,null,null,0]
["февраль",null,null,null,null,0,"","","",null,null,null,null,null,null,null,null,null,null,null,null,null,null,null,null,null,0]
["февраль",null,null,null,null,0,"","","",null,null,null,null,null,null,null,null,null,null,null,null,null,null,null,null,null,0]
["февраль",null,null,null,null,0,"","","",null,null,null,null,null,null,null,null,null,null,null,null,null,null,null,null,null,0]
["февраль",null,null,null,null,0,"","","",null,null,null,null,null,null,null,null,null,null,null,null,null,null,null,null,null,0]
["февраль",null,null,null,null,0,"","","",null,null,null,null,null,null,null,null,null,null,null,null,null,null,null,null,null,0]
["февраль",null,null,null,null,0,"","","",null,null,null,null,null,null,null,null,null,null,null,null,null,null,null,null,null,0]
["февраль",null,null,null,null,0,"","","",null,null,null,null,null,null,null,null,null,null,null,null,null,null,null,null,null,0]
["февраль",null,null,null,null,0,"","","",null,null,null,null,null,null,null,null,null,null,null,null,null,null,null,null,null,0]
["февраль",null,null,null,null,0,"","","",null,null,null,null,null,null,null,null,null,null,null,null,null,null,null,null,null,0]
["февраль",null,null,null,null,0,"","","",null,null,null,null,null,null,null,null,null,null,null,null,null,null,null,null,null,0]
["февраль",null,null,null,null,0,"","","",null,null,null,null,null,null,null,null,null,null,null,null,null,null,null,null,null,0]
["февраль",null,null,null,null,{"$f":"$D68*$E68","v":0},"","","",null,null,null,null,null,null,null,null,null,null,null,null,null,null,null,null,null,0]
[{"$f":"$A68","v":"февраль"},null,null,null,null,0,{"$f":"IF($C69>0,$G68,\"\")","v":""},{"$f":"IF($C69>0,$H68,\"\")","v":""},{"$f":"IF($C69>0,$I68,\"\")","v":""},null,null,null,null,null,null,null,null,null,null,null,null,null,null,null,null,null,0]
["февраль",null,null,null,null,0,"","","",null,null,null,null,null,null,null,null,null,null,null,null,null,null,null,null,null,0]
["февраль",null,null,null,null,0,"","","",null,null,null,null,null,null,null,null,null,null,null,null,null,null,null,null,null,0]
["февраль",null,null,null,null,0,"","","",null,null,null,null,null,null,null,null,null,null,null,null,null,null,null,null,null,0]
["февраль",null,null,null,null,0,"","","",null,null,null,null,null,null,null,null,null,null,null,null,null,null,null,null,null,0]
["февраль",null,null,null,null,0,"","","",null,null,null,null,null,null,null,null,null,null,null,null,null,null,null,null,null,0]
["февраль",null,null,null,null,0,"","","",null,null,null,null,null,null,null,null,null,null,null,null,null,null,null,null,null,0]
["февраль",null,null,null,null,0,"","","",null,null,null,null,null,null,null,null,null,null,null,null,null,null,null,null,null,0]
["февраль",null,null,null,null,0,"","","",null,null,null,null,null,null,null,null,null,null,null,null,null,null,null,null,null,0]
["февраль",null,null,null,null,0,"","","",null,null,null,null,null,null,null,null,null,null,null,null,null,null,null,null,null,0]
["февраль",null,null,null,null,0,"","","",null,null,null,null,null,null,null,null,null,null,null,null,null,null,null,null,null,0]
["февраль",null,null,null,null,0,"","","",null,null,null,null,null,null,null,null,null,null,null,null,null,null,null,null,null,0]
["февраль",null,null,null,null,0,"","","",null,null,null,null,null,null,null,null,null,null,null,null,null,null,null,null,null,0]
["февраль",null,null,null,null,0,"","","",null,null,null,null,null,null,null,null,null,null,null,null,null,null,null,null,null,0]
["февраль",null,null,null,null,0,"","","",null,null,null,null,null,null,null,null,null,null,null,null,null,null,null,null,null,0]
["февраль",null,null,null,null,0,"","","",null,null,null,null,null,null,null,null,null,null,null,null,null,null,null,null,null,0]
["февраль",null,null,null,null,0,"","","",null,null,null,null,null,null,null,null,null,null,null,null,null,null,null,null,null,0]
["февраль",null,null,null,null,0,"","","",null,null,null,null,null,null,null,null,null,null,null,null,null,null,null,null,null,0]
["февраль",null,null,null,null,0,"","","",null,null,null,null,null,null,null,null,null,null,null,null,null,null,null,null,null,0]
["февраль",null,null,null,null,0,"","","",null,null,null,null,null,null,null,null,null,null,null,null,null,null,null,null,null,0]
["февраль",null,null,null,null,0,"","","",null,null,null,null,null,null,null,null,null,null,null,null,null,null,null,null,null,0]
["февраль",null,null,null,null,0,"","","",null,null,null,null,null,null,null,null,null,null,null,null,null,null,null,null,null,0]
["февраль",null,null,null,null,0,"","","",null,null,null,null,null,null,null,null,null,null,null,null,null,null,null,null,null,0]
["февраль",null,null,null,null,0,"","","",null,null,null,null,null,null,null,null,null,null,null,null,null,null,null,null,null,0]
["февраль",null,null,null,null,0,"","","",null,null,null,null,null,null,null,null,null,null,null,null,null,null,null,null,null,0]
["февраль",null,null,null,null,0,"","","",null,null,null,null,null,null,null,null,null,null,null,null,null,null,null,null,null,0]
["февраль",null,null,null,null,0,"","","",null,null,null,null,null,null,null,null,null,null,null,null,null,null,null,null,null,0]
["февраль",null,null,null,null,0,"","","",null,null,null,null,null,null,null,null,null,null,null,null,null,null,null,null,null,0]
["февраль",null,null,null,null,0,"","","",null,null,null,null,null,null,null,null,null,null,null,null,null,null,null,null,null,0]
["февраль",null,null,null,null,0,"","","",null,null,null,null,null,null,null,null,null,null,null,null,null,null,null,null,null,0]
["февраль",null,null,null,null,0,"","","",null,null,null,null,null,null,null,null,null,null,null,null,null,null,null,null,null,0]
["февраль",null,null,null,null,0,"","","",null,null,null,null,null,null,null,null,null,null,null,null,null,null,null,null,null,0]
["февраль",null,null,null,null,0,"","","",null,null,null,null,null,null,null,null,null,null,null,null,null,null,null,null,null,0]
["февраль",null,null,null,null,0,"","","",null,null,null,null,null,null,null,null,null,null,null,null,null,null,null,null,null,0]
["февраль",null,null,null,null,0,"","","",null,null,null,null,null,null,null,null,null,null,null,null,null,null,null,null,null,0]
["февраль",null,null,null,null,0,"","","",null,null,null,null,null,null,null,null,null,null,null,null,null,null,null,null,null,0]
["февраль",null,null,null,null,0,"","","",null,null,null,null,null,null,null,null,null,null,null,null,null,null,null,null,null,0]
["февраль",null,null,null,null,0,"","","",null,null,null,null,null,null,null,null,null,null,null,null,null,null,null,null,null,0]
["февраль",null,null,null,null,0,"","","",null,null,null,null,null,null,null,null,null,null,null,null,null,null,null,null,null,0]
["февраль",null,null,null,null,0,"","","",null,null,null,null,null,null,null,null,null,null,null,null,null,null,null,null,null,0]
["февраль",null,null,null,null,0,"","","",null,null,null,null,null,null,null,null,null,null,null,null,null,null,null,null,null,0]
["февраль",null,null,null,null,0,"","","",null,null,null,null,null,null,null,null,null,null,null,null,null,null,null,null,null,0]
["февраль",null,null,null,null,0,"","","",null,null,null,null,null,null,null,null,null,null,null,null,null,null,null,null,null,0]
["февраль",null,null,null,null,0,"","","",null,null,null,null,null,null,null,null,null,null,null,null,null,null,null,null,null,0]
["февраль",null,null,null,null,0,"","","",null,null,null,null,null,null,null,null,null,null,null,null,null,null,null,null,null,0]
["февраль",null,null,null,null,0,"","","",null,null,null,null,null,null,null,null,null,null,null,null,null,null,null,null,null,0]
["февраль",null,null,null,null,0,"","","",null,null,null,null,null,null,null,null,null,null,null,null,null,null,null,null,null,0]
["февраль",null,null,null,null,0,"","","",null,null,null,null,null,null,null,null,null,null,null,null,null,null,null,null,null,0]
["февраль",null,null,null,null,0,"","","",null,null,null,null,null,null,null,null,null,null,null,null,null,null,null,null,null,0]
["февраль",null,null,null,null,0,"","","",null,null,null,null,null,null,null,null,null,null,null,null,null,null,null,null,null,0]
["февраль",null,null,null,null,0,"","","",null,null,null,null,null,null,null,null,null,null,null,null,null,null,null,null,null,0]
["февраль",null,null,null,null,0,"","","",null,null,null,null,null,null,null,null,null,null,null,null,null,null,null,null,null,0]
["февраль",null,null,null,null,0,"","","",null,null,null,null,null,null,null,null,null,null,null,null,null,null,null,null,null,0]
["февраль",null,null,null,null,0,"","","",null,null,null,null,null,null,null,null,null,null,null,null,null,null,null,null,null,0]
["февраль",null,null,null,null,0,"","","",null,null,null,null,null,null,null,null,null,null,null,null,null,null,null,null,null,0]
["февраль",null,null,null,null,0,"","","",null,null,null,null,null,null,null,null,null,null,null,null,null,null,null,null,null,0]
["февраль",null,null,null,null,0,"","","",null,null,null,null,null,null,null,null,null,null,null,null,null,null,null,null,null,0]
["февраль",null,null,null,null,0,"","","",null,null,null,null,null,null,null,null,null,null,null,null,null,null,null,null,null,0]
["февраль",null,null,null,null,0,"","","",null,null,null,null,null,null,null,null,null,null,null,null,null,null,null,null,null,0]
["февраль",null,null,null,null,0,"","","",null,null,null,null,null,null,null,null,null,null,null,null,null,null,null,null,null,0]
["февраль",null,null,null,null,0,"","","",null,null,null,null,null,null,null,null,null,null,null,null,null,null,null,null,null,0]
["февраль",null,null,null,null,0,"","","",null,null,null,null,null,null,null,null,null,null,null,null,null,null,null,null,null,0]
["февраль",null,null,null,null,0,"","","",null,null,null,null,null,null,null,null,null,null,null,null,null,null,null,null,null,0]
["февраль",null,null,null,null,{"$f":"$D132*$E132","v":0},"","","",null,null,null,null,null,null,null,null,null,null,null,null,null,null,null,null,null,0]
[{"$f":"$A132","v":"февраль"},null,null,null,null,0,{"$f":"IF($C133>0,$G132,\"\")","v":""},{"$f":"IF($C133>0,$H132,\"\")","v":""},{"$f":"IF($C133>0,$I132,\"\")","v":""},null,null,null,null,null,null,null,null,null,null,null,null,null,null,null,null,null,0]
["февраль",null,null,null,null,0,"","","",null,null,null,null,null,null,null,null,null,null,null,null,null,null,null,null,null,0]
["февраль",null,null,null,null,0,"","","",null,null,null,null,null,null,null,null,null,null,null,null,null,null,null,null,null,0]
["февраль",null,null,null,null,0,"","","",null,null,null,null,null,null,null,null,null,null,null,null,null,null,null,null,null,0]
["февраль",null,null,null,null,0,"","","",null,null,null,null,null,null,null,null,null,null,null,null,null,null,null,null,null,0]
["февраль",null,null,null,null,0,"","","",null,null,null,null,null,null,null,null,null,null,null,null,null,null,null,null,null,0]
["февраль",null,null,null,null,0,"","","",null,null,null,null,null,null,null,null,null,null,null,null,null,null,null,null,null,0]
["февраль",null,null,null,null,0,"","","",null,null,null,null,null,null,null,null,null,null,null,null,null,null,null,null,null,0]
["февраль",null,null,null,null,0,"","","",null,null,null,null,null,null,null,null,null,null,null,null,null,null,null,null,null,0]
["февраль",null,null,null,null,0,"","","",null,null,null,null,null,null,null,null,null,null,null,null,null,null,null,null,null,0]
["февраль",null,null,null,null,0,"","","",null,null,null,null,null,null,null,null,null,null,null,null,null,null,null,null,null,0]
["февраль",null,null,null,null,0,"","","",null,null,null,null,null,null,null,null,null,null,null,null,null,null,null,null,null,0]
["февраль",null,null,null,null,0,"","","",null,null,null,null,null,null,null,null,null,null,null,null,null,null,null,null,null,0]
["февраль",null,null,null,null,0,"","","",null,null,null,null,null,null,null,null,null,null,null,null,null,null,null,null,null,0]
["февраль",null,null,null,null,0,"","","",null,null,null,null,null,null,null,null,null,null,null,null,null,null,null,null,null,0]
["февраль",null,null,null,null,0,"","","",null,null,null,null,null,null,null,null,null,null,null,null,null,null,null,null,null,0]
["февраль",null,null,null,null,0,"","","",null,null,null,null,null,null,null,null,null,null,null,null,null,null,null,null,null,0]
["февраль",null,null,null,null,0,"","","",null,null,null,null,null,null,null,null,null,null,null,null,null,null,null,null,null,0]
["февраль",null,null,null,null,0,"","","",null,null,null,null,null,null,null,null,null,null,null,null,null,null,null,null,null,0]
["февраль",null,null,null,null,0,"","","",null,null,null,null,null,null,null,null,null,null,null,null,null,null,null,null,null,0]
["февраль",null,null,null,null,0,"","","",null,null,null,null,null,null,null,null,null,null,null,null,null,null,null,null,null,0]
["февраль",null,null,null,null,0,"","","",null,null,null,null,null,null,null,null,null,null,null,null,null,null,null,null,null,0]
["февраль",null,null,null,null,0,"","","",null,null,null,null,null,null,null,null,null,null,null,null,null,null,null,null,null,0]
["февраль",null,null,null,null,0,"","","",null,null,null,null,null,null,null,null,null,null,null,null,null,null,null,null,null,0]
["февраль",null,null,null,null,0,"","","",null,null,null,null,null,null,null,null,null,null,null,null,null,null,null,null,null,0]
["февраль",null,null,null,null,0,"","","",null,null,null,null,null,null,null,null,null,null,null,null,null,null,null,null,null,0]
["февраль",null,null,null,null,0,"","","",null,null,null,null,null,null,null,null,null,null,null,null,null,null,null,null,null,0]
["февраль",null,null,null,null,0,"","","",null,null,null,null,null,null,null,null,null,null,null,null,null,null,null,null,null,0]
["февраль",null,null,null,null,0,"","","",null,null,null,null,null,null,null,null,null,null,null,null,null,null,null,null,null,0]
["февраль",null,null,null,null,0,"","","",null,null,null,null,null,null,null,null,null,null,null,null,null,null,null,null,null,0]
["февраль",null,null,null,null,0,"","","",null,null,null,null,null,null,null,null,null,null,null,null,null,null,null,null,null,0]
["февраль",null,null,null,null,0,"","","",null,null,null,null,null,null,null,null,null,null,null,null,null,null,null,null,null,0]
["февраль",null,null,null,null,0,"","","",null,null,null,null,null,null,null,null,null,null,null,null,null,null,null,null,null,0]
["февраль",null,null,null,null,0,"","","",null,null,null,null,null,null,null,null,null,null,null,null,null,null,null,null,null,0]
["февраль",null,null,null,null,0,"","","",null,null,null,null,null,null,null,null,null,null,null,null,null,null,null,null,null,0]
["февраль",null,null,null,null,0,"","","",null,null,null,null,null,null,null,null,null,null,null,null,null,null,null,null,null,0]
["февраль",null,null,null,null,0,"","","",null,null,null,null,null,null,null,null,null,null,null,null,null,null,null,null,null,0]
["февраль",null,null,null,null,0,"","","",null,null,null,null,null,null,null,null,null,null,null,null,null,null,null,null,null,0]
["февраль",null,null,null,null,0,"","","",null,null,null,null,null,null,null,null,null,null,null,null,null,null,null,null,null,0]
["февраль",null,null,null,null,0,"","","",null,null,null,null,null,null,null,null,null,null,null,null,null,null,null,null,null,0]
["февраль",null,null,null,null,0,"","","",null,null,null,null,null,null,null,null,null,null,null,null,null,null,null,null,null,0]
["февраль",null,null,null,null,0,"","","",null,null,null,null,null,null,null,null,null,null,null,null,null,null,null,null,null,0]
["февраль",null,null,null,null,0,"","","",null,null,null,null,null,null,null,null,null,null,null,null,null,null,null,null,null,0]
["февраль",null,null,null,null,0,"","","",null,null,null,null,null,null,null,null,null,null,null,null,null,null,null,null,null,0]
["февраль",null,null,null,null,0,"","","",null,null,null,null,null,null,null,null,null,null,null,null,null,null,null,null,null,0]
["февраль",null,null,null,null,0,"","","",null,null,null,null,null,null,null,null,null,null,null,null,null,null,null,null,null,0]
["февраль",null,null,null,null,0,"","","",null,null,null,null,null,null,null,null,null,null,null,null,null,null,null,null,null,0]
["февраль",null,null,null,null,0,"","","",null,null,null,null,null,null,null,null,null,null,null,null,null,null,null,null,null,0]
["февраль",null,null,null,null,0,"","","",null,null,null,null,null,null,null,null,null,null,null,null,null,null,null,null,null,0]
["февраль",null,null,null,null,0,"","","",null,null,null,null,null,null,null,null,null,null,null,null,null,null,null,null,null,0]
["февраль",null,null,null,null,0,"","","",null,null,null,null,null,null,null,null,null,null,null,null,null,null,null,null,null,0]
["февраль",null,null,null,null,0,"","","",null,null,null,null,null,null,null,null,null,null,null,null,null,null,null,null,null,0]
["февраль",null,null,null,null,0,"","","",null,null,null,null,null,null,null,null,null,null,null,null,null,null,null,null,null,0]
["февраль",null,null,null,null,0,"","","",null,null,null,null,null,null,null,null,null,null,null,null,null,null,null,null,null,0]
["февраль",null,null,null,null,0,"","","",null,null,null,null,null,null,null,null,null,null,null,null,null,null,null,null,null,0]
["февраль",null,null,null,null,0,"","","",null,null,null,null,null,null,null,null,null,null,null,null,null,null,null,null,null,0]
["февраль",null,null,null,null,0,"","","",null,null,null,null,null,null,null,null,null,null,null,null,null,null,null,null,null,0]
["февраль",null,null,null,null,0,"","","",null,null,null,null,null,null,null,null,null,null,null,null,null,null,null,null,null,0]
["февраль",null,null,null,null,0,"","","",null,null,null,null,null,null,null,null,null,null,null,null,null,null,null,null,null,0]
["февраль",null,null,null,null,0,"","","",null,null,null,null,null,null,null,null,null,null,null,null,null,null,null,null,null,0]
["февраль",null,null,null,null,0,"","","",null,null,null,null,null,null,null,null,null,null,null,null,null,null,null,null,null,0]
["февраль",null,null,null,null,0,"","","",null,null,null,null,null,null,null,null,null,null,null,null,null,null,null,null,null,0]
["февраль",null,null,null,null,0,"","","",null,null,null,null,null,null,null,null,null,null,null,null,null,null,null,null,null,0]
["февраль",null,null,null,null,{"$f":"$D196*$E196","v":0},"","","",null,null,null,null,null,null,null,null,null,null,null,null,null,null,null,null,null,0]
[{"$f":"$A196","v":"февраль"},null,null,null,null,0,{"$f":"IF($C197>0,$G196,\"\")","v":""},{"$f":"IF($C197>0,$H196,\"\")","v":""},{"$f":"IF($C197>0,$I196,\"\")","v":""},null,null,null,null,null,null,null,null,null,null,null,null,null,null,null,null,null,0]
["февраль",null,null,null,null,0,"","","",null,null,null,null,null,null,null,null,null,null,null,null,null,null,null,null,null,0]
["февраль",null,null,null,null,0,"","","",null,null,null,null,null,null,null,null,null,null,null,null,null,null,null,null,null,0]
["февраль",null,null,null,null,0,"","","",null,null,null,null,null,null,null,null,null,null,null,null,null,null,null,null,null,0]
["февраль",null,null,null,null,0,"","","",null,null,null,null,null,null,null,null,null,null,null,null,null,null,null,null,null,0]
["февраль",null,null,null,null,0,"","","",null,null,null,null,null,null,null,null,null,null,null,null,null,null,null,null,null,0]
["февраль",null,null,null,null,0,"","","",null,null,null,null,null,null,null,null,null,null,null,null,null,null,null,null,null,0]
["февраль",null,null,null,null,0,"","","",null,null,null,null,null,null,null,null,null,null,null,null,null,null,null,null,null,0]
["февраль",null,null,null,null,0,"","","",null,null,null,null,null,null,null,null,null,null,null,null,null,null,null,null,null,0]
["февраль",null,null,null,null,0,"","","",null,null,null,null,null,null,null,null,null,null,null,null,null,null,null,null,null,0]
["февраль",null,null,null,null,0,"","","",null,null,null,null,null,null,null,null,null,null,null,null,null,null,null,null,null,0]
["февраль",null,null,null,null,0,"","","",null,null,null,null,null,null,null,null,null,null,null,null,null,null,null,null,null,0]
["февраль",null,null,null,null,0,"","","",null,null,null,null,null,null,null,null,null,null,null,null,null,null,null,null,null,0]
["февраль",null,null,null,null,0,"","","",null,null,null,null,null,null,null,null,null,null,null,null,null,null,null,null,null,0]
["февраль",null,null,null,null,0,"","","",null,null,null,null,null,null,null,null,null,null,null,null,null,null,null,null,null,0]
["февраль",null,null,null,null,0,"","","",null,null,null,null,null,null,null,null,null,null,null,null,null,null,null,null,null,0]
["февраль",null,null,null,null,0,"","","",null,null,null,null,null,null,null,null,null,null,null,null,null,null,null,null,null,0]
["февраль",null,null,null,null,0,"","","",null,null,null,null,null,null,null,null,null,null,null,null,null,null,null,null,null,0]
["февраль",null,null,null,null,0,"","","",null,null,null,null,null,null,null,null,null,null,null,null,null,null,null,null,null,0]
["февраль",null,null,null,null,0,"","","",null,null,null,null,null,null,null,null,null,null,null,null,null,null,null,null,null,0]
["февраль",null,null,null,null,0,"","","",null,null,null,null,null,null,null,null,null,null,null,null,null,null,null,null,null,0]
["февраль",null,null,null,null,0,"","","",null,null,null,null,null,null,null,null,null,null,null,null,null,null,null,null,null,0]
["февраль",null,null,null,null,0,"","","",null,null,null,null,null,null,null,null,null,null,null,null,null,null,null,null,null,0]
["февраль",null,null,null,null,0,"","","",null,null,null,null,null,null,null,null,null,null,null,null,null,null,null,null,null,0]
["февраль",null,null,null,null,0,"","","",null,null,null,null,null,null,null,null,null,null,null,null,null,null,null,null,null,0]
["февраль",null,null,null,null,0,"","","",null,null,null,null,null,null,null,null,null,null,null,null,null,null,null,null,null,0]
["февраль",null,null,null,null,0,"","","",null,null,null,null,null,null,null,null,null,null,null,null,null,null,null,null,null,0]
["февраль",null,null,null,null,0,"","","",null,null,null,null,null,null,null,null,null,null,null,null,null,null,null,null,null,0]
["февраль",null,null,null,null,0,"","","",null,null,null,null,null,null,null,null,null,null,null,null,null,null,null,null,null,0]
["февраль",null,null,null,null,0,"","","",null,null,null,null,null,null,null,null,null,null,null,null,null,null,null,null,null,0]
["февраль",null,null,null,null,0,"","","",null,null,null,null,null,null,null,null,null,null,null,null,null,null,null,null,null,0]
["февраль",null,null,null,null,0,"","","",null,null,null,null,null,null,null,null,null,null,null,null,null,null,null,null,null,0]
["февраль",null,null,null,null,0,"","","",null,null,null,null,null,null,null,null,null,null,null,null,null,null,null,null,null,0]
["февраль",null,null,null,null,0,"","","",null,null,null,null,null,null,null,null,null,null,null,null,null,null,null,null,null,0]
["февраль",null,null,null,null,0,"","","",null,null,null,null,null,null,null,null,null,null,null,null,null,null,null,null,null,0]
["февраль",null,null,null,null,0,"","","",null,null,null,null,null,null,null,null,null,null,null,null,null,null,null,null,null,0]
["февраль",null,null,null,null,0,"","","",null,null,null,null,null,null,null,null,null,null,null,null,null,null,null,null,null,0]
["февраль",null,null,null,null,0,"","","",null,null,null,null,null,null,null,null,null,null,null,null,null,null,null,null,null,0]
["февраль",null,null,null,null,0,"","","",null,null,null,null,null,null,null,null,null,null,null,null,null,null,null,null,null,0]
["февраль",null,null,null,null,0,"","","",null,null,null,null,null,null,null,null,null,null,null,null,null,null,null,null,null,0]
["февраль",null,null,null,null,0,"","","",null,null,null,null,null,null,null,null,null,null,null,null,null,null,null,null,null,0]
["февраль",null,null,null,null,0,"","","",null,null,null,null,null,null,null,null,null,null,null,null,null,null,null,null,null,0]
["февраль",null,null,null,null,0,"","","",null,null,null,null,null,null,null,null,null,null,null,null,null,null,null,null,null,0]
["февраль",null,null,null,null,0,"","","",null,null,null,null,null,null,null,null,null,null,null,null,null,null,null,null,null,0]
["февраль",null,null,null,null,0,"","","",null,null,null,null,null,null,null,null,null,null,null,null,null,null,null,null,null,0]
["февраль",null,null,null,null,0,"","","",null,null,null,null,null,null,null,null,null,null,null,null,null,null,null,null,null,0]
["февраль",null,null,null,null,0,"","","",null,null,null,null,null,null,null,null,null,null,null,null,null,null,null,null,null,0]
["февраль",null,null,null,null,0,"","","",null,null,null,null,null,null,null,null,null,null,null,null,null,null,null,null,null,0]
["февраль",null,null,null,null,0,"","","",null,null,null,null,null,null,null,null,null,null,null,null,null,null,null,null,null,0]
["февраль",null,null,null,null,0,"","","",null,null,null,null,null,null,null,null,null,null,null,null,null,null,null,null,null,0]
["февраль",null,null,null,null,0,"","","",null,null,null,null,null,null,null,null,null,null,null,null,null,null,null,null,null,0]
["февраль",null,null,null,null,0,"","","",null,null,null,null,null,null,null,null,null,null,null,null,null,null,null,null,null,0]
["февраль",null,null,null,null,0,"","","",null,null,null,null,null,null,null,null,null,null,null,null,null,null,null,null,null,0]
["февраль",null,null,null,null,0,"","","",null,null,null,null,null,null,null,null,null,null,null,null,null,null,null,null,null,0]
["февраль",null,null,null,null,0,"","","",null,null,null,null,null,null,null,null,null,null,null,null,null,null,null,null,null,0]
["февраль",null,null,null,null,0,"","","",null,null,null,null,null,null,null,null,null,null,null,null,null,null,null,null,null,0]
["февраль",null,null,null,null,0,"","","",null,null,null,null,null,null,null,null,null,null,null,null,null,null,null,null,null,0]
["февраль",null,null,null,null,0,"","","",null,null,null,null,null,null,null,null,null,null,null,null,null,null,null,null,null,0]
["февраль",null,null,null,null,0,"","","",null,null,null,null,null,null,null,null,null,null,null,null,null,null,null,null,null,0]
["февраль",null,null,null,null,0,"","","",null,null,null,null,null,null,null,null,null,null,null,null,null,null,null,null,null,0]
["февраль",null,null,null,null,0,"","","",null,null,null,null,null,null,null,null,null,null,null,null,null,null,null,null,null,0]
["февраль",null,null,null,null,0,"","","",null,null,null,null,null,null,null,null,null,null,null,null,null,null,null,null,null,0]
["февраль",null,null,null,null,0,"","","",null,null,null,null,null,null,null,null,null,null,null,null,null,null,null,null,null,0]
["февраль",null,null,null,null,{"$f":"$D260*$E260","v":0},"","","",null,null,null,null,null,null,null,null,null,null,null,null,null,null,null,null,null,0]
[{"$f":"$A260","v":"февраль"},null,null,null,null,0,{"$f":"IF($C261>0,$G260,\"\")","v":""},{"$f":"IF($C261>0,$H260,\"\")","v":""},{"$f":"IF($C261>0,$I260,\"\")","v":""},null,null,null,null,null,null,null,null,null,null,null,null,null,null,null,null,null,0]
["февраль",null,null,null,null,0,"","","",null,null,null,null,null,null,null,null,null,null,null,null,null,null,null,null,null,0]
["февраль",null,null,null,null,0,"","","",null,null,null,null,null,null,null,null,null,null,null,null,null,null,null,null,null,0]
["февраль",null,null,null,null,0,"","","",null,null,null,null,null,null,null,null,null,null,null,null,null,null,null,null,null,0]
["февраль",null,null,null,null,0,"","","",null,null,null,null,null,null,null,null,null,null,null,null,null,null,null,null,null,0]
["февраль",null,null,null,null,0,"","","",null,null,null,null,null,null,null,null,null,null,null,null,null,null,null,null,null,0]
["февраль",null,null,null,null,0,"","","",null,null,null,null,null,null,null,null,null,null,null,null,null,null,null,null,null,0]
["февраль",null,null,null,null,0,"","","",null,null,null,null,null,null,null,null,null,null,null,null,null,null,null,null,null,0]
["февраль",null,null,null,null,0,"","","",null,null,null,null,null,null,null,null,null,null,null,null,null,null,null,null,null,0]
["февраль",null,null,null,null,0,"","","",null,null,null,null,null,null,null,null,null,null,null,null,null,null,null,null,null,0]
["февраль",null,null,null,null,0,"","","",null,null,null,null,null,null,null,null,null,null,null,null,null,null,null,null,null,0]
["февраль",null,null,null,null,0,"","","",null,null,null,null,null,null,null,null,null,null,null,null,null,null,null,null,null,0]
["февраль",null,null,null,null,0,"","","",null,null,null,null,null,null,null,null,null,null,null,null,null,null,null,null,null,0]
["февраль",null,null,null,null,0,"","","",null,null,null,null,null,null,null,null,null,null,null,null,null,null,null,null,null,0]
["февраль",null,null,null,null,0,"","","",null,null,null,null,null,null,null,null,null,null,null,null,null,null,null,null,null,0]
["февраль",null,null,null,null,0,"","","",null,null,null,null,null,null,null,null,null,null,null,null,null,null,null,null,null,0]
["февраль",null,null,null,null,0,"","","",null,null,null,null,null,null,null,null,null,null,null,null,null,null,null,null,null,0]
["февраль",null,null,null,null,0,"","","",null,null,null,null,null,null,null,null,null,null,null,null,null,null,null,null,null,0]
["февраль",null,null,null,null,0,"","","",null,null,null,null,null,null,null,null,null,null,null,null,null,null,null,null,null,0]
["февраль",null,null,null,null,0,"","","",null,null,null,null,null,null,null,null,null,null,null,null,null,null,null,null,null,0]
["февраль",null,null,null,null,0,"","","",null,null,null,null,null,null,null,null,null,null,null,null,null,null,null,null,null,0]
["февраль",null,null,null,null,0,"","","",null,null,null,null,null,null,null,null,null,null,null,null,null,null,null,null,null,0]
["февраль",null,null,null,null,0,"","","",null,null,null,null,null,null,null,null,null,null,null,null,null,null,null,null,null,0]
["февраль",null,null,null,null,0,"","","",null,null,null,null,null,null,null,null,null,null,null,null,null,null,null,null,null,0]
["февраль",null,null,null,null,0,"","","",null,null,null,null,null,null,null,null,null,null,null,null,null,null,null,null,null,0]
["февраль",null,null,null,null,0,"","","",null,null,null,null,null,null,null,null,null,null,null,null,null,null,null,null,null,0]
["февраль",null,null,null,null,0,"","","",null,null,null,null,null,null,null,null,null,null,null,null,null,null,null,null,null,0]
["февраль",null,null,null,null,0,"","","",null,null,null,null,null,null,null,null,null,null,null,null,null,null,null,null,null,0]
["февраль",null,null,null,null,0,"","","",null,null,null,null,null,null,null,null,null,null,null,null,null,null,null,null,null,0]
["февраль",null,null,null,null,0,"","","",null,null,null,null,null,null,null,null,null,null,null,null,null,null,null,null,null,0]
["февраль",null,null,null,null,0,"","","",null,null,null,null,null,null,null,null,null,null,null,null,null,null,null,null,null,0]
["февраль",null,null,null,null,0,"","","",null,null,null,null,null,null,null,null,null,null,null,null,null,null,null,null,null,0]
["февраль",null,null,null,null,0,"","","",null,null,null,null,null,null,null,null,null,null,null,null,null,null,null,null,null,0]
["февраль",null,null,null,null,0,"","","",null,null,null,null,null,null,null,null,null,null,null,null,null,null,null,null,null,0]
["февраль",null,null,null,null,0,"","","",null,null,null,null,null,null,null,null,null,null,null,null,null,null,null,null,null,0]
["февраль",null,null,null,null,0,"","","",null,null,null,null,null,null,null,null,null,null,null,null,null,null,null,null,null,0]
["февраль",null,null,null,null,0,"","","",null,null,null,null,null,null,null,null,null,null,null,null,null,null,null,null,null,0]
["февраль",null,null,null,null,0,"","","",null,null,null,null,null,null,null,null,null,null,null,null,null,null,null,null,null,0]
["февраль",null,null,null,null,0,"","","",null,null,null,null,null,null,null,null,null,null,null,null,null,null,null,null,null,0]
["февраль",null,null,null,null,0,"","","",null,null,null,null,null,null,null,null,null,null,null,null,null,null,null,null,null,0]
["февраль",null,null,null,null,0,"","","",null,null,null,null,null,null,null,null,null,null,null,null,null,null,null,null,null,0]
["февраль",null,null,null,null,0,"","","",null,null,null,null,null,null,null,null,null,null,null,null,null,null,null,null,null,0]
["февраль",null,null,null,null,0,"","","",null,null,null,null,null,null,null,null,null,null,null,null,null,null,null,null,null,0]
["февраль",null,null,null,null,0,"","","",null,null,null,null,null,null,null,null,null,null,null,null,null,null,null,null,null,0]
["февраль",null,null,null,null,0,"","","",null,null,null,null,null,null,null,null,null,null,null,null,null,null,null,null,null,0]
["февраль",null,null,null,null,0,"","","",null,null,null,null,null,null,null,null,null,null,null,null,null,null,null,null,null,0]
["февраль",null,null,null,null,0,"","","",null,null,null,null,null,null,null,null,null,null,null,null,null,null,null,null,null,0]
["февраль",null,null,null,null,0,"","","",null,null,null,null,null,null,null,null,null,null,null,null,null,null,null,null,null,0]
["февраль",null,null,null,null,0,"","","",null,null,null,null,null,null,null,null,null,null,null,null,null,null,null,null,null,0]
["февраль",null,null,null,null,0,"","","",null,null,null,null,null,null,null,null,null,null,null,null,null,null,null,null,null,0]
["февраль",null,null,null,null,0,"","","",null,null,null,null,null,null,null,null,null,null,null,null,null,null,null,null,null,0]
["февраль",null,null,null,null,0,"","","",null,null,null,null,null,null,null,null,null,null,null,null,null,null,null,null,null,0]
["февраль",null,null,null,null,0,"","","",null,null,null,null,null,null,null,null,null,null,null,null,null,null,null,null,null,0]
["февраль",null,null,null,null,0,"","","",null,null,null,null,null,null,null,null,null,null,null,null,null,null,null,null,null,0]
["февраль",null,null,null,null,0,"","","",null,null,null,null,null,null,null,null,null,null,null,null,null,null,null,null,null,0]
["февраль",null,null,null,null,0,"","","",null,null,null,null,null,null,null,null,null,null,null,null,null,null,null,null,null,0]
["февраль",null,null,null,null,0,"","","",null,null,null,null,null,null,null,null,null,null,null,null,null,null,null,null,null,0]
["февраль",null,null,null,null,0,"","","",null,null,null,null,null,null,null,null,null,null,null,null,null,null,null,null,null,0]
["февраль",null,null,null,null,0,"","","",null,null,null,null,null,null,null,null,null,null,null,null,null,null,null,null,null,0]
["февраль",null,null,null,null,0,"","","",null,null,null,null,null,null,null,null,null,null,null,null,null,null,null,null,null,0]
["февраль",null,null,null,null,0,"","","",null,null,null,null,null,null,null,null,null,null,null,null,null,null,null,null,null,0]
["февраль",null,null,null,null,0,"","","",null,null,null,null,null,null,null,null,null,null,null,null,null,null,null,null,null,0]
["февраль",null,null,null,null,0,"","","",null,null,null,null,null,null,null,null,null,null,null,null,null,null,null,null,null,0]
["февраль",null,null,null,null,{"$f":"$D324*$E324","v":0},"","","",null,null,null,null,null,null,null,null,null,null,null,null,null,null,null,null,null,0]
[{"$f":"$A324","v":"февраль"},null,null,null,null,0,{"$f":"IF($C325>0,$G324,\"\")","v":""},{"$f":"IF($C325>0,$H324,\"\")","v":""},{"$f":"IF($C325>0,$I324,\"\")","v":""},null,null,null,null,null,null,null,null,null,null,null,null,null,null,null,null,null,0]
["февраль",null,null,null,null,0,"","","",null,null,null,null,null,null,null,null,null,null,null,null,null,null,null,null,null,0]
["февраль",null,null,null,null,0,"","","",null,null,null,null,null,null,null,null,null,null,null,null,null,null,null,null,null,0]
["февраль",null,null,null,null,0,"","","",null,null,null,null,null,null,null,null,null,null,null,null,null,null,null,null,null,0]
["февраль",null,null,null,null,0,"","","",null,null,null,null,null,null,null,null,null,null,null,null,null,null,null,null,null,0]
["февраль",null,null,null,null,0,"","","",null,null,null,null,null,null,null,null,null,null,null,null,null,null,null,null,null,0]
["февраль",null,null,null,null,0,"","","",null,null,null,null,null,null,null,null,null,null,null,null,null,null,null,null,null,0]
["февраль",null,null,null,null,0,"","","",null,null,null,null,null,null,null,null,null,null,null,null,null,null,null,null,null,0]
["февраль",null,null,null,null,0,"","","",null,null,null,null,null,null,null,null,null,null,null,null,null,null,null,null,null,0]
["февраль",null,null,null,null,0,"","","",null,null,null,null,null,null,null,null,null,null,null,null,null,null,null,null,null,0]
["февраль",null,null,null,null,0,"","","",null,null,null,null,null,null,null,null,null,null,null,null,null,null,null,null,null,0]
["февраль",null,null,null,null,0,"","","",null,null,null,null,null,null,null,null,null,null,null,null,null,null,null,null,null,0]
["февраль",null,null,null,null,0,"","","",null,null,null,null,null,null,null,null,null,null,null,null,null,null,null,null,null,0]
["февраль",null,null,null,null,0,"","","",null,null,null,null,null,null,null,null,null,null,null,null,null,null,null,null,null,0]
["февраль",null,null,null,null,0,"","","",null,null,null,null,null,null,null,null,null,null,null,null,null,null,null,null,null,0]
["февраль",null,null,null,null,0,"","","",null,null,null,null,null,null,null,null,null,null,null,null,null,null,null,null,null,0]
["февраль",null,null,null,null,0,"","","",null,null,null,null,null,null,null,null,null,null,null,null,null,null,null,null,null,0]
["февраль",null,null,null,null,0,"","","",null,null,null,null,null,null,null,null,null,null,null,null,null,null,null,null,null,0]
["февраль",null,null,null,null,0,"","","",null,null,null,null,null,null,null,null,null,null,null,null,null,null,null,null,null,0]
["февраль",null,null,null,null,0,"","","",null,null,null,null,null,null,null,null,null,null,null,null,null,null,null,null,null,0]
["февраль",null,null,null,null,0,"","","",null,null,null,null,null,null,null,null,null,null,null,null,null,null,null,null,null,0]
["февраль",null,null,null,null,0,"","","",null,null,null,null,null,null,null,null,null,null,null,null,null,null,null,null,null,0]
["февраль",null,null,null,null,0,"","","",null,null,null,null,null,null,null,null,null,null,null,null,null,null,null,null,null,0]
["февраль",null,null,null,null,0,"","","",null,null,null,null,null,null,null,null,null,null,null,null,null,null,null,null,null,0]
["февраль",null,null,null,null,0,"","","",null,null,null,null,null,null,null,null,null,null,null,null,null,null,null,null,null,0]
["февраль",null,null,null,null,0,"","","",null,null,null,null,null,null,null,null,null,null,null,null,null,null,null,null,null,0]
["февраль",null,null,null,null,0,"","","",null,null,null,null,null,null,null,null,null,null,null,null,null,null,null,null,null,0]
["февраль",null,null,null,null,0,"","","",null,null,null,null,null,null,null,null,null,null,null,null,null,null,null,null,null,0]
["февраль",null,null,null,null,0,"","","",null,null,null,null,null,null,null,null,null,null,null,null,null,null,null,null,null,0]
["февраль",null,null,null,null,0,"","","",null,null,null,null,null,null,null,null,null,null,null,null,null,null,null,null,null,0]
["февраль",null,null,null,null,0,"","","",null,null,null,null,null,null,null,null,null,null,null,null,null,null,null,null,null,0]
["февраль",null,null,null,null,0,"","","",null,null,null,null,null,null,null,null,null,null,null,null,null,null,null,null,null,0]
["февраль",null,null,null,null,0,"","","",null,null,null,null,null,null,null,null,null,null,null,null,null,null,null,null,null,0]
["февраль",null,null,null,null,0,"","","",null,null,null,null,null,null,null,null,null,null,null,null,null,null,null,null,null,0]
["февраль",null,null,null,null,0,"","","",null,null,null,null,null,null,null,null,null,null,null,null,null,null,null,null,null,0]
["февраль",null,null,null,null,0,"","","",null,null,null,null,null,null,null,null,null,null,null,null,null,null,null,null,null,0]
["февраль",null,null,null,null,0,"","","",null,null,null,null,null,null,null,null,null,null,null,null,null,null,null,null,null,0]
["февраль",null,null,null,null,0,"","","",null,null,null,null,null,null,null,null,null,null,null,null,null,null,null,null,null,0]
["февраль",null,null,null,null,0,"","","",null,null,null,null,null,null,null,null,null,null,null,null,null,null,null,null,null,0]
["февраль",null,null,null,null,0,"","","",null,null,null,null,null,null,null,null,null,null,null,null,null,null,null,null,null,0]
["февраль",null,null,null,null,0,"","","",null,null,null,null,null,null,null,null,null,null,null,null,null,null,null,null,null,0]
["февраль",null,null,null,null,0,"","","",null,null,null,null,null,null,null,null,null,null,null,null,null,null,null,null,null,0]
["февраль",null,null,null,null,0,"","","",null,null,null,null,null,null,null,null,null,null,null,null,null,null,null,null,null,0]
["февраль",null,null,null,null,0,"","","",null,null,null,null,null,null,null,null,null,null,null,null,null,null,null,null,null,0]
["февраль",null,null,null,null,0,"","","",null,null,null,null,null,null,null,null,null,null,null,null,null,null,null,null,null,0]
["февраль",null,null,null,null,0,"","","",null,null,null,null,null,null,null,null,null,null,null,null,null,null,null,null,null,0]
["февраль",null,null,null,null,0,"","","",null,null,null,null,null,null,null,null,null,null,null,null,null,null,null,null,null,0]
["февраль",null,null,null,null,0,"","","",null,null,null,null,null,null,null,null,null,null,null,null,null,null,null,null,null,0]
["февраль",null,null,null,null,0,"","","",null,null,null,null,null,null,null,null,null,null,null,null,null,null,null,null,null,0]
["февраль",null,null,null,null,0,"","","",null,null,null,null,null,null,null,null,null,null,null,null,null,null,null,null,null,0]
["февраль",null,null,null,null,0,"","","",null,null,null,null,null,null,null,null,null,null,null,null,null,null,null,null,null,0]
["февраль",null,null,null,null,0,"","","",null,null,null,null,null,null,null,null,null,null,null,null,null,null,null,null,null,0]
["февраль",null,null,null,null,0,"","","",null,null,null,null,null,null,null,null,null,null,null,null,null,null,null,null,null,0]
["февраль",null,null,null,null,0,"","","",null,null,null,null,null,null,null,null,null,null,null,null,null,null,null,null,null,0]
["февраль",null,null,null,null,0,"","","",null,null,null,null,null,null,null,null,null,null,null,null,null,null,null,null,null,0]
["февраль",null,null,null,null,0,"","","",null,null,null,null,null,null,null,null,null,null,null,null,null,null,null,null,null,0]
["февраль",null,null,null,null,0,"","","",null,null,null,null,null,null,null,null,null,null,null,null,null,null,null,null,null,0]
["февраль",null,null,null,null,0,"","","",null,null,null,null,null,null,null,null,null,null,null,null,null,null,null,null,null,0]
["февраль",null,null,null,null,0,"","","",null,null,null,null,null,null,null,null,null,null,null,null,null,null,null,null,null,0]
["февраль",null,null,null,null,0,"","","",null,null,null,null,null,null,null,null,null,null,null,null,null,null,null,null,null,0]
["февраль",null,null,null,null,0,"","","",null,null,null,null,null,null,null,null,null,null,null,null,null,null,null,null,null,0]
["февраль",null,null,null,null,0,"","","",null,null,null,null,null,null,null,null,null,null,null,null,null,null,null,null,null,0]
["февраль",null,null,null,null,0,"","","",null,null,null,null,null,null,null,null,null,null,null,null,null,null,null,null,null,0]
["февраль",null,null,null,null,{"$f":"$D388*$E388","v":0},"","","",null,null,null,null,null,null,null,null,null,null,null,null,null,null,null,null,null,0]
[{"$f":"$A388","v":"февраль"},null,null,null,null,0,{"$f":"IF($C389>0,$G388,\"\")","v":""},{"$f":"IF($C389>0,$H388,\"\")","v":""},{"$f":"IF($C389>0,$I388,\"\")","v":""},null,null,null,null,null,null,null,null,null,null,null,null,null,null,null,null,null,0]
["февраль",null,null,null,null,0,"","","",null,null,null,null,null,null,null,null,null,null,null,null,null,null,null,null,null,0]
["февраль",null,null,null,null,0,"","","",null,null,null,null,null,null,null,null,null,null,null,null,null,null,null,null,null,0]
["февраль",null,null,null,null,0,"","","",null,null,null,null,null,null,null,null,null,null,null,null,null,null,null,null,null,0]
["февраль",null,null,null,null,0,"","","",null,null,null,null,null,null,null,null,null,null,null,null,null,null,null,null,null,0]
["февраль",null,null,null,null,0,"","","",null,null,null,null,null,null,null,null,null,null,null,null,null,null,null,null,null,0]
["февраль",null,null,null,null,0,"","","",null,null,null,null,null,null,null,null,null,null,null,null,null,null,null,null,null,0]
["февраль",null,null,null,null,0,"","","",null,null,null,null,null,null,null,null,null,null,null,null,null,null,null,null,null,0]
["февраль",null,null,null,null,0,"","","",null,null,null,null,null,null,null,null,null,null,null,null,null,null,null,null,null,0]
["февраль",null,null,null,null,0,"","","",null,null,null,null,null,null,null,null,null,null,null,null,null,null,null,null,null,0]
["февраль",null,null,null,null,0,"","","",null,null,null,null,null,null,null,null,null,null,null,null,null,null,null,null,null,0]
["февраль",null,null,null,null,0,"","","",null,null,null,null,null,null,null,null,null,null,null,null,null,null,null,null,null,0]
["февраль",null,null,null,null,0,"","","",null,null,null,null,null,null,null,null,null,null,null,null,null,null,null,null,null,0]
["февраль",null,null,null,null,0,"","","",null,null,null,null,null,null,null,null,null,null,null,null,null,null,null,null,null,0]
["февраль",null,null,null,null,0,"","","",null,null,null,null,null,null,null,null,null,null,null,null,null,null,null,null,null,0]
["февраль",null,null,null,null,0,"","","",null,null,null,null,null,null,null,null,null,null,null,null,null,null,null,null,null,0]
["февраль",null,null,null,null,0,"","","",null,null,null,null,null,null,null,null,null,null,null,null,null,null,null,null,null,0]
["февраль",null,null,null,null,0,"","","",null,null,null,null,null,null,null,null,null,null,null,null,null,null,null,null,null,0]
["февраль",null,null,null,null,0,"","","",null,null,null,null,null,null,null,null,null,null,null,null,null,null,null,null,null,0]
["февраль",null,null,null,null,0,"","","",null,null,null,null,null,null,null,null,null,null,null,null,null,null,null,null,null,0]
["февраль",null,null,null,null,0,"","","",null,null,null,null,null,null,null,null,null,null,null,null,null,null,null,null,null,0]
["февраль",null,null,null,null,0,"","","",null,null,null,null,null,null,null,null,null,null,null,null,null,null,null,null,null,0]
["февраль",null,null,null,null,0,"","","",null,null,null,null,null,null,null,null,null,null,null,null,null,null,null,null,null,0]
["февраль",null,null,null,null,0,"","","",null,null,null,null,null,null,null,null,null,null,null,null,null,null,null,null,null,0]
["февраль",null,null,null,null,0,"","","",null,null,null,null,null,null,null,null,null,null,null,null,null,null,null,null,null,0]
["февраль",null,null,null,null,0,"","","",null,null,null,null,null,null,null,null,null,null,null,null,null,null,null,null,null,0]
["февраль",null,null,null,null,0,"","","",null,null,null,null,null,null,null,null,null,null,null,null,null,null,null,null,null,0]
["февраль",null,null,null,null,0,"","","",null,null,null,null,null,null,null,null,null,null,null,null,null,null,null,null,null,0]
["февраль",null,null,null,null,0,"","","",null,null,null,null,null,null,null,null,null,null,null,null,null,null,null,null,null,0]
["февраль",null,null,null,null,0,"","","",null,null,null,null,null,null,null,null,null,null,null,null,null,null,null,null,null,0]
["февраль",null,null,null,null,0,"","","",null,null,null,null,null,null,null,null,null,null,null,null,null,null,null,null,null,0]
["февраль",null,null,null,null,0,"","","",null,null,null,null,null,null,null,null,null,null,null,null,null,null,null,null,null,0]
["февраль",null,null,null,null,0,"","","",null,null,null,null,null,null,null,null,null,null,null,null,null,null,null,null,null,0]
["февраль",null,null,null,null,0,"","","",null,null,null,null,null,null,null,null,null,null,null,null,null,null,null,null,null,0]
["февраль",null,null,null,null,0,"","","",null,null,null,null,null,null,null,null,null,null,null,null,null,null,null,null,null,0]
["февраль",null,null,null,null,0,"","","",null,null,null,null,null,null,null,null,null,null,null,null,null,null,null,null,null,0]
["февраль",null,null,null,null,0,"","","",null,null,null,null,null,null,null,null,null,null,null,null,null,null,null,null,null,0]
["февраль",null,null,null,null,0,"","","",null,null,null,null,null,null,null,null,null,null,null,null,null,null,null,null,null,0]
["февраль",null,null,null,null,0,"","","",null,null,null,null,null,null,null,null,null,null,null,null,null,null,null,null,null,0]
["февраль",null,null,null,null,0,"","","",null,null,null,null,null,null,null,null,null,null,null,null,null,null,null,null,null,0]
["февраль",null,null,null,null,0,"","","",null,null,null,null,null,null,null,null,null,null,null,null,null,null,null,null,null,0]
["февраль",null,null,null,null,0,"","","",null,null,null,null,null,null,null,null,null,null,null,null,null,null,null,null,null,0]
["февраль",null,null,null,null,0,"","","",null,null,null,null,null,null,null,null,null,null,null,null,null,null,null,null,null,0]
["февраль",null,null,null,null,0,"","","",null,null,null,null,null,null,null,null,null,null,null,null,null,null,null,null,null,0]
["февраль",null,null,null,null,0,"","","",null,null,null,null,null,null,null,null,null,null,null,null,null,null,null,null,null,0]
["февраль",null,null,null,null,0,"","","",null,null,null,null,null,null,null,null,null,null,null,null,null,null,null,null,null,0]
["февраль",null,null,null,null,0,"","","",null,null,null,null,null,null,null,null,null,null,null,null,null,null,null,null,null,0]
["февраль",null,null,null,null,0,"","","",null,null,null,null,null,null,null,null,null,null,null,null,null,null,null,null,null,0]
["февраль",null,null,null,null,0,"","","",null,null,null,null,null,null,null,null,null,null,null,null,null,null,null,null,null,0]
["февраль",null,null,null,null,0,"","","",null,null,null,null,null,null,null,null,null,null,null,null,null,null,null,null,null,0]
["февраль",null,null,null,null,0,"","","",null,null,null,null,null,null,null,null,null,null,null,null,null,null,null,null,null,0]
["февраль",null,null,null,null,0,"","","",null,null,null,null,null,null,null,null,null,null,null,null,null,null,null,null,null,0]
["февраль",null,null,null,null,0,"","","",null,null,null,null,null,null,null,null,null,null,null,null,null,null,null,null,null,0]
["февраль",null,null,null,null,0,"","","",null,null,null,null,null,null,null,null,null,null,null,null,null,null,null,null,null,0]
["февраль",null,null,null,null,0,"","","",null,null,null,null,null,null,null,null,null,null,null,null,null,null,null,null,null,0]
["февраль",null,null,null,null,0,"","","",null,null,null,null,null,null,null,null,null,null,null,null,null,null,null,null,null,0]
["февраль",null,null,null,null,0,"","","",null,null,null,null,null,null,null,null,null,null,null,null,null,null,null,null,null,0]
["февраль",null,null,null,null,0,"","","",null,null,null,null,null,null,null,null,null,null,null,null,null,null,null,null,null,0]
["февраль",null,null,null,null,0,"","","",null,null,null,null,null,null,null,null,null,null,null,null,null,null,null,null,null,0]
["февраль",null,null,null,null,0,"","","",null,null,null,null,null,null,null,null,null,null,null,null,null,null,null,null,null,0]
["февраль",null,null,null,null,0,"","","",null,null,null,null,null,null,null,null,null,null,null,null,null,null,null,null,null,0]
["февраль",null,null,null,null,0,"","","",null,null,null,null,null,null,null,null,null,null,null,null,null,null,null,null,null,0]
["февраль",null,null,null,null,0,"","","",null,null,null,null,null,null,null,null,null,null,null,null,null,null,null,null,null,0]
["февраль",null,null,null,null,{"$f":"$D452*$E452","v":0},"","","",null,null,null,null,null,null,null,null,null,null,null,null,null,null,null,null,null,0]
[{"$f":"$A452","v":"февраль"},null,null,null,null,0,{"$f":"IF($C453>0,$G452,\"\")","v":""},{"$f":"IF($C453>0,$H452,\"\")","v":""},{"$f":"IF($C453>0,$I452,\"\")","v":""},null,null,null,null,null,null,null,null,null,null,null,null,null,null,null,null,null,0]
["февраль",null,null,null,null,0,"","","",null,null,null,null,null,null,null,null,null,null,null,null,null,null,null,null,null,0]
["февраль",null,null,null,null,0,"","","",null,null,null,null,null,null,null,null,null,null,null,null,null,null,null,null,null,0]
["февраль",null,null,null,null,0,"","","",null,null,null,null,null,null,null,null,null,null,null,null,null,null,null,null,null,0]
["февраль",null,null,null,null,0,"","","",null,null,null,null,null,null,null,null,null,null,null,null,null,null,null,null,null,0]
["февраль",null,null,null,null,0,"","","",null,null,null,null,null,null,null,null,null,null,null,null,null,null,null,null,null,0]
["февраль",null,null,null,null,0,"","","",null,null,null,null,null,null,null,null,null,null,null,null,null,null,null,null,null,0]
["февраль",null,null,null,null,0,"","","",null,null,null,null,null,null,null,null,null,null,null,null,null,null,null,null,null,0]
["февраль",null,null,null,null,0,"","","",null,null,null,null,null,null,null,null,null,null,null,null,null,null,null,null,null,0]
["февраль",null,null,null,null,0,"","","",null,null,null,null,null,null,null,null,null,null,null,null,null,null,null,null,null,0]
["февраль",null,null,null,null,0,"","","",null,null,null,null,null,null,null,null,null,null,null,null,null,null,null,null,null,0]
["февраль",null,null,null,null,0,"","","",null,null,null,null,null,null,null,null,null,null,null,null,null,null,null,null,null,0]
["февраль",null,null,null,null,0,"","","",null,null,null,null,null,null,null,null,null,null,null,null,null,null,null,null,null,0]
["февраль",null,null,null,null,0,"","","",null,null,null,null,null,null,null,null,null,null,null,null,null,null,null,null,null,0]
["февраль",null,null,null,null,0,"","","",null,null,null,null,null,null,null,null,null,null,null,null,null,null,null,null,null,0]
["февраль",null,null,null,null,0,"","","",null,null,null,null,null,null,null,null,null,null,null,null,null,null,null,null,null,0]
["февраль",null,null,null,null,0,"","","",null,null,null,null,null,null,null,null,null,null,null,null,null,null,null,null,null,0]
["февраль",null,null,null,null,0,"","","",null,null,null,null,null,null,null,null,null,null,null,null,null,null,null,null,null,0]
["февраль",null,null,null,null,0,"","","",null,null,null,null,null,null,null,null,null,null,null,null,null,null,null,null,null,0]
["февраль",null,null,null,null,0,"","","",null,null,null,null,null,null,null,null,null,null,null,null,null,null,null,null,null,0]
["февраль",null,null,null,null,0,"","","",null,null,null,null,null,null,null,null,null,null,null,null,null,null,null,null,null,0]
["февраль",null,null,null,null,0,"","","",null,null,null,null,null,null,null,null,null,null,null,null,null,null,null,null,null,0]
["февраль",null,null,null,null,0,"","","",null,null,null,null,null,null,null,null,null,null,null,null,null,null,null,null,null,0]
["февраль",null,null,null,null,0,"","","",null,null,null,null,null,null,null,null,null,null,null,null,null,null,null,null,null,0]
["февраль",null,null,null,null,0,"","","",null,null,null,null,null,null,null,null,null,null,null,null,null,null,null,null,null,0]
["февраль",null,null,null,null,0,"","","",null,null,null,null,null,null,null,null,null,null,null,null,null,null,null,null,null,0]
["февраль",null,null,null,null,0,"","","",null,null,null,null,null,null,null,null,null,null,null,null,null,null,null,null,null,0]
["февраль",null,null,null,null,0,"","","",null,null,null,null,null,null,null,null,null,null,null,null,null,null,null,null,null,0]
["февраль",null,null,null,null,0,"","","",null,null,null,null,null,null,null,null,null,null,null,null,null,null,null,null,null,0]
["февраль",null,null,null,null,0,"","","",null,null,null,null,null,null,null,null,null,null,null,null,null,null,null,null,null,0]
["февраль",null,null,null,null,0,"","","",null,null,null,null,null,null,null,null,null,null,null,null,null,null,null,null,null,0]
["февраль",null,null,null,null,0,"","","",null,null,null,null,null,null,null,null,null,null,null,null,null,null,null,null,null,0]
["февраль",null,null,null,null,0,"","","",null,null,null,null,null,null,null,null,null,null,null,null,null,null,null,null,null,0]
["февраль",null,null,null,null,0,"","","",null,null,null,null,null,null,null,null,null,null,null,null,null,null,null,null,null,0]
["февраль",null,null,null,null,0,"","","",null,null,null,null,null,null,null,null,null,null,null,null,null,null,null,null,null,0]
["февраль",null,null,null,null,0,"","","",null,null,null,null,null,null,null,null,null,null,null,null,null,null,null,null,null,0]
["февраль",null,null,null,null,0,"","","",null,null,null,null,null,null,null,null,null,null,null,null,null,null,null,null,null,0]
["февраль",null,null,null,null,0,"","","",null,null,null,null,null,null,null,null,null,null,null,null,null,null,null,null,null,0]
["февраль",null,null,null,null,0,"","","",null,null,null,null,null,null,null,null,null,null,null,null,null,null,null,null,null,0]
["февраль",null,null,null,null,0,"","","",null,null,null,null,null,null,null,null,null,null,null,null,null,null,null,null,null,0]
["февраль",null,null,null,null,0,"","","",null,null,null,null,null,null,null,null,null,null,null,null,null,null,null,null,null,0]
["февраль",null,null,null,null,0,"","","",null,null,null,null,null,null,null,null,null,null,null,null,null,null,null,null,null,0]
["февраль",null,null,null,null,0,"","","",null,null,null,null,null,null,null,null,null,null,null,null,null,null,null,null,null,0]
["февраль",null,null,null,null,0,"","","",null,null,null,null,null,null,null,null,null,null,null,null,null,null,null,null,null,0]
["февраль",null,null,null,null,0,"","","",null,null,null,null,null,null,null,null,null,null,null,null,null,null,null,null,null,0]
["февраль",null,null,null,null,0,"","","",null,null,null,null,null,null,null,null,null,null,null,null,null,null,null,null,null,0]
["февраль",null,null,null,null,0,"","","",null,null,null,null,null,null,null,null,null,null,null,null,null,null,null,null,null,0]
["февраль",null,null,null,null,0,"","","",null,null,null,null,null,null,null,null,null,null,null,null,null,null,null,null,null,0]
["февраль",null,null,null,null,0,"","","",null,null,null,null,null,null,null,null,null,null,null,null,null,null,null,null,null,0]
["февраль",null,null,null,null,0,"","","",null,null,null,null,null,null,null,null,null,null,null,null,null,null,null,null,null,0]
["февраль",null,null,null,null,0,"","","",null,null,null,null,null,null,null,null,null,null,null,null,null,null,null,null,null,0]
["февраль",null,null,null,null,0,"","","",null,null,null,null,null,null,null,null,null,null,null,null,null,null,null,null,null,0]
["февраль",null,null,null,null,0,"","","",null,null,null,null,null,null,null,null,null,null,null,null,null,null,null,null,null,0]
["февраль",null,null,null,null,0,"","","",null,null,null,null,null,null,null,null,null,null,null,null,null,null,null,null,null,0]
["февраль",null,null,null,null,0,"","","",null,null,null,null,null,null,null,null,null,null,null,null,null,null,null,null,null,0]
["февраль",null,null,null,null,0,"","","",null,null,null,null,null,null,null,null,null,null,null,null,null,null,null,null,null,0]
["февраль",null,null,null,null,0,"","","",null,null,null,null,null,null,null,null,null,null,null,null,null,null,null,null,null,0]
["февраль",null,null,null,null,0,"","","",null,null,null,null,null,null,null,null,null,null,null,null,null,null,null,null,null,0]
["февраль",null,null,null,null,0,"","","",null,null,null,null,null,null,null,null,null,null,null,null,null,null,null,null,null,0]
["февраль",null,null,null,null,0,"","","",null,null,null,null,null,null,null,null,null,null,null,null,null,null,null,null,null,0]
["февраль",null,null,null,null,0,"","","",null,null,null,null,null,null,null,null,null,null,null,null,null,null,null,null,null,0]
["февраль",null,null,null,null,0,"","","",null,null,null,null,null,null,null,null,null,null,null,null,null,null,null,null,null,0]
["февраль",null,null,null,null,0,"","","",null,null,null,null,null,null,null,null,null,null,null,null,null,null,null,null,null,0]
["февраль",null,null,null,null,{"$f":"$D516*$E516","v":0},"","","",null,null,null,null,null,null,null,null,null,null,null,null,null,null,null,null,null,0]
[{"$f":"$A516","v":"февраль"},null,null,null,null,0,{"$f":"IF($C517>0,$G516,\"\")","v":""},{"$f":"IF($C517>0,$H516,\"\")","v":""},{"$f":"IF($C517>0,$I516,\"\")","v":""},null,null,null,null,null,null,null,null,null,null,null,null,null,null,null,null,null,0]
["февраль",null,null,null,null,0,"","","",null,null,null,null,null,null,null,null,null,null,null,null,null,null,null,null,null,0]
["февраль",null,null,null,null,0,"","","",null,null,null,null,null,null,null,null,null,null,null,null,null,null,null,null,null,0]
["февраль",null,null,null,null,0,"","","",null,null,null,null,null,null,null,null,null,null,null,null,null,null,null,null,null,0]
["февраль",null,null,null,null,0,"","","",null,null,null,null,null,null,null,null,null,null,null,null,null,null,null,null,null,0]
["февраль",null,null,null,null,0,"","","",null,null,null,null,null,null,null,null,null,null,null,null,null,null,null,null,null,0]
["февраль",null,null,null,null,0,"","","",null,null,null,null,null,null,null,null,null,null,null,null,null,null,null,null,null,0]
["февраль",null,null,null,null,0,"","","",null,null,null,null,null,null,null,null,null,null,null,null,null,null,null,null,null,0]
["февраль",null,null,null,null,0,"","","",null,null,null,null,null,null,null,null,null,null,null,null,null,null,null,null,null,0]
["февраль",null,null,null,null,0,"","","",null,null,null,null,null,null,null,null,null,null,null,null,null,null,null,null,null,0]
["февраль",null,null,null,null,0,"","","",null,null,null,null,null,null,null,null,null,null,null,null,null,null,null,null,null,0]
["февраль",null,null,null,null,0,"","","",null,null,null,null,null,null,null,null,null,null,null,null,null,null,null,null,null,0]
["февраль",null,null,null,null,0,"","","",null,null,null,null,null,null,null,null,null,null,null,null,null,null,null,null,null,0]
["февраль",null,null,null,null,0,"","","",null,null,null,null,null,null,null,null,null,null,null,null,null,null,null,null,null,0]
["февраль",null,null,null,null,0,"","","",null,null,null,null,null,null,null,null,null,null,null,null,null,null,null,null,null,0]
["февраль",null,null,null,null,0,"","","",null,null,null,null,null,null,null,null,null,null,null,null,null,null,null,null,null,0]
["февраль",null,null,null,null,0,"","","",null,null,null,null,null,null,null,null,null,null,null,null,null,null,null,null,null,0]
["февраль",null,null,null,null,0,"","","",null,null,null,null,null,null,null,null,null,null,null,null,null,null,null,null,null,0]
["февраль",null,null,null,null,0,"","","",null,null,null,null,null,null,null,null,null,null,null,null,null,null,null,null,null,0]
["февраль",null,null,null,null,0,"","","",null,null,null,null,null,null,null,null,null,null,null,null,null,null,null,null,null,0]
["февраль",null,null,null,null,0,"","","",null,null,null,null,null,null,null,null,null,null,null,null,null,null,null,null,null,0]
["февраль",null,null,null,null,0,"","","",null,null,null,null,null,null,null,null,null,null,null,null,null,null,null,null,null,0]
["февраль",null,null,null,null,0,"","","",null,null,null,null,null,null,null,null,null,null,null,null,null,null,null,null,null,0]
["февраль",null,null,null,null,0,"","","",null,null,null,null,null,null,null,null,null,null,null,null,null,null,null,null,null,0]
["февраль",null,null,null,null,0,"","","",null,null,null,null,null,null,null,null,null,null,null,null,null,null,null,null,null,0]
["февраль",null,null,null,null,0,"","","",null,null,null,null,null,null,null,null,null,null,null,null,null,null,null,null,null,0]
["февраль",null,null,null,null,0,"","","",null,null,null,null,null,null,null,null,null,null,null,null,null,null,null,null,null,0]
["февраль",null,null,null,null,0,"","","",null,null,null,null,null,null,null,null,null,null,null,null,null,null,null,null,null,0]
["февраль",null,null,null,null,0,"","","",null,null,null,null,null,null,null,null,null,null,null,null,null,null,null,null,null,0]
["февраль",null,null,null,null,0,"","","",null,null,null,null,null,null,null,null,null,null,null,null,null,null,null,null,null,0]
["февраль",null,null,null,null,0,"","","",null,null,null,null,null,null,null,null,null,null,null,null,null,null,null,null,null,0]
["февраль",null,null,null,null,0,"","","",null,null,null,null,null,null,null,null,null,null,null,null,null,null,null,null,null,0]
["февраль",null,null,null,null,0,"","","",null,null,null,null,null,null,null,null,null,null,null,null,null,null,null,null,null,0]
["февраль",null,null,null,null,0,"","","",null,null,null,null,null,null,null,null,null,null,null,null,null,null,null,null,null,0]
["февраль",null,null,null,null,0,"","","",null,null,null,null,null,null,null,null,null,null,null,null,null,null,null,null,null,0]
["февраль",null,null,null,null,0,"","","",null,null,null,null,null,null,null,null,null,null,null,null,null,null,null,null,null,0]
["февраль",null,null,null,null,0,"","","",null,null,null,null,null,null,null,null,null,null,null,null,null,null,null,null,null,0]
["февраль",null,null,null,null,0,"","","",null,null,null,null,null,null,null,null,null,null,null,null,null,null,null,null,null,0]
["февраль",null,null,null,null,0,"","","",null,null,null,null,null,null,null,null,null,null,null,null,null,null,null,null,null,0]
["февраль",null,null,null,null,0,"","","",null,null,null,null,null,null,null,null,null,null,null,null,null,null,null,null,null,0]
["февраль",null,null,null,null,0,"","","",null,null,null,null,null,null,null,null,null,null,null,null,null,null,null,null,null,0]
["февраль",null,null,null,null,0,"","","",null,null,null,null,null,null,null,null,null,null,null,null,null,null,null,null,null,0]
["февраль",null,null,null,null,0,"","","",null,null,null,null,null,null,null,null,null,null,null,null,null,null,null,null,null,0]
["февраль",null,null,null,null,0,"","","",null,null,null,null,null,null,null,null,null,null,null,null,null,null,null,null,null,0]
["февраль",null,null,null,null,0,"","","",null,null,null,null,null,null,null,null,null,null,null,null,null,null,null,null,null,0]
["февраль",null,null,null,null,0,"","","",null,null,null,null,null,null,null,null,null,null,null,null,null,null,null,null,null,0]
["февраль",null,null,null,null,0,"","","",null,null,null,null,null,null,null,null,null,null,null,null,null,null,null,null,null,0]
["февраль",null,null,null,null,0,"","","",null,null,null,null,null,null,null,null,null,null,null,null,null,null,null,null,null,0]
["февраль",null,null,null,null,0,"","","",null,null,null,null,null,null,null,null,null,null,null,null,null,null,null,null,null,0]
["февраль",null,null,null,null,0,"","","",null,null,null,null,null,null,null,null,null,null,null,null,null,null,null,null,null,0]
["февраль",null,null,null,null,0,"","","",null,null,null,null,null,null,null,null,null,null,null,null,null,null,null,null,null,0]
["февраль",null,null,null,null,0,"","","",null,null,null,null,null,null,null,null,null,null,null,null,null,null,null,null,null,0]
["февраль",null,null,null,null,0,"","","",null,null,null,null,null,null,null,null,null,null,null,null,null,null,null,null,null,0]
["февраль",null,null,null,null,0,"","","",null,null,null,null,null,null,null,null,null,null,null,null,null,null,null,null,null,0]
["февраль",null,null,null,null,0,"","","",null,null,null,null,null,null,null,null,null,null,null,null,null,null,null,null,null,0]
["февраль",null,null,null,null,0,"","","",null,null,null,null,null,null,null,null,null,null,null,null,null,null,null,null,null,0]
["февраль",null,null,null,null,0,"","","",null,null,null,null,null,null,null,null,null,null,null,null,null,null,null,null,null,0]
["февраль",null,null,null,null,0,"","","",null,null,null,null,null,null,null,null,null,null,null,null,null,null,null,null,null,0]
["февраль",null,null,null,null,0,"","","",null,null,null,null,null,null,null,null,null,null,null,null,null,null,null,null,null,0]
["февраль",null,null,null,null,0,"","","",null,null,null,null,null,null,null,null,null,null,null,null,null,null,null,null,null,0]
["февраль",null,null,null,null,0,"","","",null,null,null,null,null,null,null,null,null,null,null,null,null,null,null,null,null,0]
["февраль",null,null,null,null,0,"","","",null,null,null,null,null,null,null,null,null,null,null,null,null,null,null,null,null,0]
["февраль",null,null,null,null,0,"","","",null,null,null,null,null,null,null,null,null,null,null,null,null,null,null,null,null,0]
["февраль",null,null,null,null,{"$f":"$D580*$E580","v":0},"","","",null,null,null,null,null,null,null,null,null,null,null,null,null,null,null,null,null,0]
[{"$f":"$A580","v":"февраль"},null,null,null,null,0,{"$f":"IF($C581>0,$G580,\"\")","v":""},{"$f":"IF($C581>0,$H580,\"\")","v":""},{"$f":"IF($C581>0,$I580,\"\")","v":""},null,null,null,null,null,null,null,null,null,null,null,null,null,null,null,null,null,0]
["февраль",null,null,null,null,0,"","","",null,null,null,null,null,null,null,null,null,null,null,null,null,null,null,null,null,0]
["февраль",null,null,null,null,0,"","","",null,null,null,null,null,null,null,null,null,null,null,null,null,null,null,null,null,0]
["февраль",null,null,null,null,0,"","","",null,null,null,null,null,null,null,null,null,null,null,null,null,null,null,null,null,0]
["февраль",null,null,null,null,0,"","","",null,null,null,null,null,null,null,null,null,null,null,null,null,null,null,null,null,0]
["февраль",null,null,null,null,0,"","","",null,null,null,null,null,null,null,null,null,null,null,null,null,null,null,null,null,0]
["февраль",null,null,null,null,0,"","","",null,null,null,null,null,null,null,null,null,null,null,null,null,null,null,null,null,0]
["февраль",null,null,null,null,0,"","","",null,null,null,null,null,null,null,null,null,null,null,null,null,null,null,null,null,0]
["февраль",null,null,null,null,0,"","","",null,null,null,null,null,null,null,null,null,null,null,null,null,null,null,null,null,0]
["февраль",null,null,null,null,0,"","","",null,null,null,null,null,null,null,null,null,null,null,null,null,null,null,null,null,0]
["февраль",null,null,null,null,0,"","","",null,null,null,null,null,null,null,null,null,null,null,null,null,null,null,null,null,0]
["февраль",null,null,null,null,0,"","","",null,null,null,null,null,null,null,null,null,null,null,null,null,null,null,null,null,0]
["февраль",null,null,null,null,0,"","","",null,null,null,null,null,null,null,null,null,null,null,null,null,null,null,null,null,0]
["февраль",null,null,null,null,0,"","","",null,null,null,null,null,null,null,null,null,null,null,null,null,null,null,null,null,0]
["февраль",null,null,null,null,0,"","","",null,null,null,null,null,null,null,null,null,null,null,null,null,null,null,null,null,0]
["февраль",null,null,null,null,0,"","","",null,null,null,null,null,null,null,null,null,null,null,null,null,null,null,null,null,0]
["февраль",null,null,null,null,0,"","","",null,null,null,null,null,null,null,null,null,null,null,null,null,null,null,null,null,0]
["февраль",null,null,null,null,0,"","","",null,null,null,null,null,null,null,null,null,null,null,null,null,null,null,null,null,0]
["февраль",null,null,null,null,0,"","","",null,null,null,null,null,null,null,null,null,null,null,null,null,null,null,null,null,0]
["февраль",null,null,null,null,0,"","","",null,null,null,null,null,null,null,null,null,null,null,null,null,null,null,null,null,0]
["февраль",null,null,null,null,0,"","","",null,null,null,null,null,null,null,null,null,null,null,null,null,null,null,null,null,0]
["февраль",null,null,null,null,0,"","","",null,null,null,null,null,null,null,null,null,null,null,null,null,null,null,null,null,0]
["февраль",null,null,null,null,0,"","","",null,null,null,null,null,null,null,null,null,null,null,null,null,null,null,null,null,0]
["февраль",null,null,null,null,0,"","","",null,null,null,null,null,null,null,null,null,null,null,null,null,null,null,null,null,0]
["февраль",null,null,null,null,0,"","","",null,null,null,null,null,null,null,null,null,null,null,null,null,null,null,null,null,0]
["февраль",null,null,null,null,0,"","","",null,null,null,null,null,null,null,null,null,null,null,null,null,null,null,null,null,0]
["февраль",null,null,null,null,0,"","","",null,null,null,null,null,null,null,null,null,null,null,null,null,null,null,null,null,0]
["февраль",null,null,null,null,0,"","","",null,null,null,null,null,null,null,null,null,null,null,null,null,null,null,null,null,0]
["февраль",null,null,null,null,0,"","","",null,null,null,null,null,null,null,null,null,null,null,null,null,null,null,null,null,0]
["февраль",null,null,null,null,0,"","","",null,null,null,null,null,null,null,null,null,null,null,null,null,null,null,null,null,0]
["февраль",null,null,null,null,0,"","","",null,null,null,null,null,null,null,null,null,null,null,null,null,null,null,null,null,0]
["февраль",null,null,null,null,0,"","","",null,null,null,null,null,null,null,null,null,null,null,null,null,null,null,null,null,0]
["февраль",null,null,null,null,0,"","","",null,null,null,null,null,null,null,null,null,null,null,null,null,null,null,null,null,0]
["февраль",null,null,null,null,0,"","","",null,null,null,null,null,null,null,null,null,null,null,null,null,null,null,null,null,0]
["февраль",null,null,null,null,0,"","","",null,null,null,null,null,null,null,null,null,null,null,null,null,null,null,null,null,0]
["февраль",null,null,null,null,0,"","","",null,null,null,null,null,null,null,null,null,null,null,null,null,null,null,null,null,0]
["февраль",null,null,null,null,0,"","","",null,null,null,null,null,null,null,null,null,null,null,null,null,null,null,null,null,0]
["февраль",null,null,null,null,0,"","","",null,null,null,null,null,null,null,null,null,null,null,null,null,null,null,null,null,0]
["февраль",null,null,null,null,0,"","","",null,null,null,null,null,null,null,null,null,null,null,null,null,null,null,null,null,0]
["февраль",null,null,null,null,0,"","","",null,null,null,null,null,null,null,null,null,null,null,null,null,null,null,null,null,0]
["февраль",null,null,null,null,0,"","","",null,null,null,null,null,null,null,null,null,null,null,null,null,null,null,null,null,0]
["февраль",null,null,null,null,0,"","","",null,null,null,null,null,null,null,null,null,null,null,null,null,null,null,null,null,0]
["февраль",null,null,null,null,0,"","","",null,null,null,null,null,null,null,null,null,null,null,null,null,null,null,null,null,0]
["февраль",null,null,null,null,0,"","","",null,null,null,null,null,null,null,null,null,null,null,null,null,null,null,null,null,0]
["февраль",null,null,null,null,0,"","","",null,null,null,null,null,null,null,null,null,null,null,null,null,null,null,null,null,0]
["февраль",null,null,null,null,0,"","","",null,null,null,null,null,null,null,null,null,null,null,null,null,null,null,null,null,0]
["февраль",null,null,null,null,0,"","","",null,null,null,null,null,null,null,null,null,null,null,null,null,null,null,null,null,0]
["февраль",null,null,null,null,0,"","","",null,null,null,null,null,null,null,null,null,null,null,null,null,null,null,null,null,0]
["февраль",null,null,null,null,0,"","","",null,null,null,null,null,null,null,null,null,null,null,null,null,null,null,null,null,0]
["февраль",null,null,null,null,0,"","","",null,null,null,null,null,null,null,null,null,null,null,null,null,null,null,null,null,0]
["февраль",null,null,null,null,0,"","","",null,null,null,null,null,null,null,null,null,null,null,null,null,null,null,null,null,0]
["февраль",null,null,null,null,0,"","","",null,null,null,null,null,null,null,null,null,null,null,null,null,null,null,null,null,0]
["февраль",null,null,null,null,0,"","","",null,null,null,null,null,null,null,null,null,null,null,null,null,null,null,null,null,0]
["февраль",null,null,null,null,0,"","","",null,null,null,null,null,null,null,null,null,null,null,null,null,null,null,null,null,0]
["февраль",null,null,null,null,0,"","","",null,null,null,null,null,null,null,null,null,null,null,null,null,null,null,null,null,0]
["февраль",null,null,null,null,0,"","","",null,null,null,null,null,null,null,null,null,null,null,null,null,null,null,null,null,0]
["февраль",null,null,null,null,0,"","","",null,null,null,null,null,null,null,null,null,null,null,null,null,null,null,null,null,0]
["февраль",null,null,null,null,0,"","","",null,null,null,null,null,null,null,null,null,null,null,null,null,null,null,null,null,0]
["февраль",null,null,null,null,0,"","","",null,null,null,null,null,null,null,null,null,null,null,null,null,null,null,null,null,0]
["февраль",null,null,null,null,0,"","","",null,null,null,null,null,null,null,null,null,null,null,null,null,null,null,null,null,0]
["февраль",null,null,null,null,0,"","","",null,null,null,null,null,null,null,null,null,null,null,null,null,null,null,null,null,0]
["февраль",null,null,null,null,0,"","","",null,null,null,null,null,null,null,null,null,null,null,null,null,null,null,null,null,0]
["февраль",null,null,null,null,0,"","","",null,null,null,null,null,null,null,null,null,null,null,null,null,null,null,null,null,0]
["февраль",null,null,null,null,{"$f":"$D644*$E644","v":0},"","","",null,null,null,null,null,null,null,null,null,null,null,null,null,null,null,null,null,0]
[{"$f":"$A644","v":"февраль"},null,null,null,null,0,{"$f":"IF($C645>0,$G644,\"\")","v":""},{"$f":"IF($C645>0,$H644,\"\")","v":""},{"$f":"IF($C645>0,$I644,\"\")","v":""},null,null,null,null,null,null,null,null,null,null,null,null,null,null,null,null,null,0]
["февраль",null,null,null,null,0,"","","",null,null,null,null,null,null,null,null,null,null,null,null,null,null,null,null,null,0]
["февраль",null,null,null,null,0,"","","",null,null,null,null,null,null,null,null,null,null,null,null,null,null,null,null,null,0]
["февраль",null,null,null,null,0,"","","",null,null,null,null,null,null,null,null,null,null,null,null,null,null,null,null,null,0]
["февраль",null,null,null,null,0,"","","",null,null,null,null,null,null,null,null,null,null,null,null,null,null,null,null,null,0]
["февраль",null,null,null,null,0,"","","",null,null,null,null,null,null,null,null,null,null,null,null,null,null,null,null,null,0]
["февраль",null,null,null,null,0,"","","",null,null,null,null,null,null,null,null,null,null,null,null,null,null,null,null,null,0]
["февраль",null,null,null,null,0,"","","",null,null,null,null,null,null,null,null,null,null,null,null,null,null,null,null,null,0]
["февраль",null,null,null,null,0,"","","",null,null,null,null,null,null,null,null,null,null,null,null,null,null,null,null,null,0]
["февраль",null,null,null,null,0,"","","",null,null,null,null,null,null,null,null,null,null,null,null,null,null,null,null,null,0]
["февраль",null,null,null,null,0,"","","",null,null,null,null,null,null,null,null,null,null,null,null,null,null,null,null,null,0]
["февраль",null,null,null,null,0,"","","",null,null,null,null,null,null,null,null,null,null,null,null,null,null,null,null,null,0]
["февраль",null,null,null,null,0,"","","",null,null,null,null,null,null,null,null,null,null,null,null,null,null,null,null,null,0]
["февраль",null,null,null,null,0,"","","",null,null,null,null,null,null,null,null,null,null,null,null,null,null,null,null,null,0]
["февраль",null,null,null,null,0,"","","",null,null,null,null,null,null,null,null,null,null,null,null,null,null,null,null,null,0]
["февраль",null,null,null,null,0,"","","",null,null,null,null,null,null,null,null,null,null,null,null,null,null,null,null,null,0]
["февраль",null,null,null,null,0,"","","",null,null,null,null,null,null,null,null,null,null,null,null,null,null,null,null,null,0]
["февраль",null,null,null,null,0,"","","",null,null,null,null,null,null,null,null,null,null,null,null,null,null,null,null,null,0]
["февраль",null,null,null,null,0,"","","",null,null,null,null,null,null,null,null,null,null,null,null,null,null,null,null,null,0]
["февраль",null,null,null,null,0,"","","",null,null,null,null,null,null,null,null,null,null,null,null,null,null,null,null,null,0]
["февраль",null,null,null,null,0,"","","",null,null,null,null,null,null,null,null,null,null,null,null,null,null,null,null,null,0]
["февраль",null,null,null,null,0,"","","",null,null,null,null,null,null,null,null,null,null,null,null,null,null,null,null,null,0]
["февраль",null,null,null,null,0,"","","",null,null,null,null,null,null,null,null,null,null,null,null,null,null,null,null,null,0]
["февраль",null,null,null,null,0,"","","",null,null,null,null,null,null,null,null,null,null,null,null,null,null,null,null,null,0]
["февраль",null,null,null,null,0,"","","",null,null,null,null,null,null,null,null,null,null,null,null,null,null,null,null,null,0]
["февраль",null,null,null,null,0,"","","",null,null,null,null,null,null,null,null,null,null,null,null,null,null,null,null,null,0]
["февраль",null,null,null,null,0,"","","",null,null,null,null,null,null,null,null,null,null,null,null,null,null,null,null,null,0]
["февраль",null,null,null,null,0,"","","",null,null,null,null,null,null,null,null,null,null,null,null,null,null,null,null,null,0]
["февраль",null,null,null,null,0,"","","",null,null,null,null,null,null,null,null,null,null,null,null,null,null,null,null,null,0]
["февраль",null,null,null,null,0,"","","",null,null,null,null,null,null,null,null,null,null,null,null,null,null,null,null,null,0]
["февраль",null,null,null,null,0,"","","",null,null,null,null,null,null,null,null,null,null,null,null,null,null,null,null,null,0]
["февраль",null,null,null,null,0,"","","",null,null,null,null,null,null,null,null,null,null,null,null,null,null,null,null,null,0]
["февраль",null,null,null,null,0,"","","",null,null,null,null,null,null,null,null,null,null,null,null,null,null,null,null,null,0]
["февраль",null,null,null,null,0,"","","",null,null,null,null,null,null,null,null,null,null,null,null,null,null,null,null,null,0]
["февраль",null,null,null,null,0,"","","",null,null,null,null,null,null,null,null,null,null,null,null,null,null,null,null,null,0]
["февраль",null,null,null,null,0,"","","",null,null,null,null,null,null,null,null,null,null,null,null,null,null,null,null,null,0]
["февраль",null,null,null,null,0,"","","",null,null,null,null,null,null,null,null,null,null,null,null,null,null,null,null,null,0]
["февраль",null,null,null,null,0,"","","",null,null,null,null,null,null,null,null,null,null,null,null,null,null,null,null,null,0]
["февраль",null,null,null,null,0,"","","",null,null,null,null,null,null,null,null,null,null,null,null,null,null,null,null,null,0]
["февраль",null,null,null,null,0,"","","",null,null,null,null,null,null,null,null,null,null,null,null,null,null,null,null,null,0]
["февраль",null,null,null,null,0,"","","",null,null,null,null,null,null,null,null,null,null,null,null,null,null,null,null,null,0]
["февраль",null,null,null,null,0,"","","",null,null,null,null,null,null,null,null,null,null,null,null,null,null,null,null,null,0]
["февраль",null,null,null,null,0,"","","",null,null,null,null,null,null,null,null,null,null,null,null,null,null,null,null,null,0]
["февраль",null,null,null,null,0,"","","",null,null,null,null,null,null,null,null,null,null,null,null,null,null,null,null,null,0]
["февраль",null,null,null,null,0,"","","",null,null,null,null,null,null,null,null,null,null,null,null,null,null,null,null,null,0]
["февраль",null,null,null,null,0,"","","",null,null,null,null,null,null,null,null,null,null,null,null,null,null,null,null,null,0]
["февраль",null,null,null,null,0,"","","",null,null,null,null,null,null,null,null,null,null,null,null,null,null,null,null,null,0]
["февраль",null,null,null,null,0,"","","",null,null,null,null,null,null,null,null,null,null,null,null,null,null,null,null,null,0]
["февраль",null,null,null,null,0,"","","",null,null,null,null,null,null,null,null,null,null,null,null,null,null,null,null,null,0]
["февраль",null,null,null,null,0,"","","",null,null,null,null,null,null,null,null,null,null,null,null,null,null,null,null,null,0]
["февраль",null,null,null,null,0,"","","",null,null,null,null,null,null,null,null,null,null,null,null,null,null,null,null,null,0]
["февраль",null,null,null,null,0,"","","",null,null,null,null,null,null,null,null,null,null,null,null,null,null,null,null,null,0]
["февраль",null,null,null,null,0,"","","",null,null,null,null,null,null,null,null,null,null,null,null,null,null,null,null,null,0]
["февраль",null,null,null,null,0,"","","",null,null,null,null,null,null,null,null,null,null,null,null,null,null,null,null,null,0]
["февраль",null,null,null,null,0,"","","",null,null,null,null,null,null,null,null,null,null,null,null,null,null,null,null,null,0]
["февраль",null,null,null,null,0,"","","",null,null,null,null,null,null,null,null,null,null,null,null,null,null,null,null,null,0]
["февраль",null,null,null,null,0,"","","",null,null,null,null,null,null,null,null,null,null,null,null,null,null,null,null,null,0]
["февраль",null,null,null,null,0,"","","",null,null,null,null,null,null,null,null,null,null,null,null,null,null,null,null,null,0]
["февраль",null,null,null,null,0,"","","",null,null,null,null,null,null,null,null,null,null,null,null,null,null,null,null,null,0]
["февраль",null,null,null,null,0,"","","",null,null,null,null,null,null,null,null,null,null,null,null,null,null,null,null,null,0]
["февраль",null,null,null,null,0,"","","",null,null,null,null,null,null,null,null,null,null,null,null,null,null,null,null,null,0]
["февраль",null,null,null,null,0,"","","",null,null,null,null,null,null,null,null,null,null,null,null,null,null,null,null,null,0]
["февраль",null,null,null,null,0,"","","",null,null,null,null,null,null,null,null,null,null,null,null,null,null,null,null,null,0]
["февраль",null,null,null,null,{"$f":"$D708*$E708","v":0},"","","",null,null,null,null,null,null,null,null,null,null,null,null,null,null,null,null,null,0]
[{"$f":"$A708","v":"февраль"},null,null,null,null,0,{"$f":"IF($C709>0,$G708,\"\")","v":""},{"$f":"IF($C709>0,$H708,\"\")","v":""},{"$f":"IF($C709>0,$I708,\"\")","v":""},null,null,null,null,null,null,null,null,null,null,null,null,null,null,null,null,null,0]
["февраль",null,null,null,null,0,"","","",null,null,null,null,null,null,null,null,null,null,null,null,null,null,null,null,null,0]
["февраль",null,null,null,null,0,"","","",null,null,null,null,null,null,null,null,null,null,null,null,null,null,null,null,null,0]
["февраль",null,null,null,null,0,"","","",null,null,null,null,null,null,null,null,null,null,null,null,null,null,null,null,null,0]
["февраль",null,null,null,null,0,"","","",null,null,null,null,null,null,null,null,null,null,null,null,null,null,null,null,null,0]
["февраль",null,null,null,null,0,"","","",null,null,null,null,null,null,null,null,null,null,null,null,null,null,null,null,null,0]
["февраль",null,null,null,null,0,"","","",null,null,null,null,null,null,null,null,null,null,null,null,null,null,null,null,null,0]
["февраль",null,null,null,null,0,"","","",null,null,null,null,null,null,null,null,null,null,null,null,null,null,null,null,null,0]
["февраль",null,null,null,null,0,"","","",null,null,null,null,null,null,null,null,null,null,null,null,null,null,null,null,null,0]
["февраль",null,null,null,null,0,"","","",null,null,null,null,null,null,null,null,null,null,null,null,null,null,null,null,null,0]
["февраль",null,null,null,null,0,"","","",null,null,null,null,null,null,null,null,null,null,null,null,null,null,null,null,null,0]
["февраль",null,null,null,null,0,"","","",null,null,null,null,null,null,null,null,null,null,null,null,null,null,null,null,null,0]
["февраль",null,null,null,null,0,"","","",null,null,null,null,null,null,null,null,null,null,null,null,null,null,null,null,null,0]
["февраль",null,null,null,null,0,"","","",null,null,null,null,null,null,null,null,null,null,null,null,null,null,null,null,null,0]
["февраль",null,null,null,null,0,"","","",null,null,null,null,null,null,null,null,null,null,null,null,null,null,null,null,null,0]
["февраль",null,null,null,null,0,"","","",null,null,null,null,null,null,null,null,null,null,null,null,null,null,null,null,null,0]
["февраль",null,null,null,null,0,"","","",null,null,null,null,null,null,null,null,null,null,null,null,null,null,null,null,null,0]
["февраль",null,null,null,null,0,"","","",null,null,null,null,null,null,null,null,null,null,null,null,null,null,null,null,null,0]
["февраль",null,null,null,null,0,"","","",null,null,null,null,null,null,null,null,null,null,null,null,null,null,null,null,null,0]
["февраль",null,null,null,null,0,"","","",null,null,null,null,null,null,null,null,null,null,null,null,null,null,null,null,null,0]
["февраль",null,null,null,null,0,"","","",null,null,null,null,null,null,null,null,null,null,null,null,null,null,null,null,null,0]
["февраль",null,null,null,null,0,"","","",null,null,null,null,null,null,null,null,null,null,null,null,null,null,null,null,null,0]
["февраль",null,null,null,null,0,"","","",null,null,null,null,null,null,null,null,null,null,null,null,null,null,null,null,null,0]
["февраль",null,null,null,null,0,"","","",null,null,null,null,null,null,null,null,null,null,null,null,null,null,null,null,null,0]
["февраль",null,null,null,null,0,"","","",null,null,null,null,null,null,null,null,null,null,null,null,null,null,null,null,null,0]
["февраль",null,null,null,null,0,"","","",null,null,null,null,null,null,null,null,null,null,null,null,null,null,null,null,null,0]
["февраль",null,null,null,null,0,"","","",null,null,null,null,null,null,null,null,null,null,null,null,null,null,null,null,null,0]
["февраль",null,null,null,null,0,"","","",null,null,null,null,null,null,null,null,null,null,null,null,null,null,null,null,null,0]
["февраль",null,null,null,null,0,"","","",null,null,null,null,null,null,null,null,null,null,null,null,null,null,null,null,null,0]
["февраль",null,null,null,null,0,"","","",null,null,null,null,null,null,null,null,null,null,null,null,null,null,null,null,null,0]
["февраль",null,null,null,null,0,"","","",null,null,null,null,null,null,null,null,null,null,null,null,null,null,null,null,null,0]
["февраль",null,null,null,null,0,"","","",null,null,null,null,null,null,null,null,null,null,null,null,null,null,null,null,null,0]
["февраль",null,null,null,null,0,"","","",null,null,null,null,null,null,null,null,null,null,null,null,null,null,null,null,null,0]
["февраль",null,null,null,null,0,"","","",null,null,null,null,null,null,null,null,null,null,null,null,null,null,null,null,null,0]
["февраль",null,null,null,null,0,"","","",null,null,null,null,null,null,null,null,null,null,null,null,null,null,null,null,null,0]
["февраль",null,null,null,null,0,"","","",null,null,null,null,null,null,null,null,null,null,null,null,null,null,null,null,null,0]
["февраль",null,null,null,null,0,"","","",null,null,null,null,null,null,null,null,null,null,null,null,null,null,null,null,null,0]
["февраль",null,null,null,null,0,"","","",null,null,null,null,null,null,null,null,null,null,null,null,null,null,null,null,null,0]
["февраль",null,null,null,null,0,"","","",null,null,null,null,null,null,null,null,null,null,null,null,null,null,null,null,null,0]
["февраль",null,null,null,null,0,"","","",null,null,null,null,null,null,null,null,null,null,null,null,null,null,null,null,null,0]
["февраль",null,null,null,null,0,"","","",null,null,null,null,null,null,null,null,null,null,null,null,null,null,null,null,null,0]
["февраль",null,null,null,null,0,"","","",null,null,null,null,null,null,null,null,null,null,null,null,null,null,null,null,null,0]
["февраль",null,null,null,null,0,"","","",null,null,null,null,null,null,null,null,null,null,null,null,null,null,null,null,null,0]
["февраль",null,null,null,null,0,"","","",null,null,null,null,null,null,null,null,null,null,null,null,null,null,null,null,null,0]
["февраль",null,null,null,null,0,"","","",null,null,null,null,null,null,null,null,null,null,null,null,null,null,null,null,null,0]
["февраль",null,null,null,null,0,"","","",null,null,null,null,null,null,null,null,null,null,null,null,null,null,null,null,null,0]
["февраль",null,null,null,null,0,"","","",null,null,null,null,null,null,null,null,null,null,null,null,null,null,null,null,null,0]
["февраль",null,null,null,null,0,"","","",null,null,null,null,null,null,null,null,null,null,null,null,null,null,null,null,null,0]
["февраль",null,null,null,null,0,"","","",null,null,null,null,null,null,null,null,null,null,null,null,null,null,null,null,null,0]
["февраль",null,null,null,null,0,"","","",null,null,null,null,null,null,null,null,null,null,null,null,null,null,null,null,null,0]
["февраль",null,null,null,null,0,"","","",null,null,null,null,null,null,null,null,null,null,null,null,null,null,null,null,null,0]
["февраль",null,null,null,null,0,"","","",null,null,null,null,null,null,null,null,null,null,null,null,null,null,null,null,null,0]
["февраль",null,null,null,null,0,"","","",null,null,null,null,null,null,null,null,null,null,null,null,null,null,null,null,null,0]
["февраль",null,null,null,null,0,"","","",null,null,null,null,null,null,null,null,null,null,null,null,null,null,null,null,null,0]
["февраль",null,null,null,null,0,"","","",null,null,null,null,null,null,null,null,null,null,null,null,null,null,null,null,null,0]
["февраль",null,null,null,null,0,"","","",null,null,null,null,null,null,null,null,null,null,null,null,null,null,null,null,null,0]
["февраль",null,null,null,null,0,"","","",null,null,null,null,null,null,null,null,null,null,null,null,null,null,null,null,null,0]
["февраль",null,null,null,null,0,"","","",null,null,null,null,null,null,null,null,null,null,null,null,null,null,null,null,null,0]
["февраль",null,null,null,null,0,"","","",null,null,null,null,null,null,null,null,null,null,null,null,null,null,null,null,null,0]
["февраль",null,null,null,null,0,"","","",null,null,null,null,null,null,null,null,null,null,null,null,null,null,null,null,null,0]
["февраль",null,null,null,null,0,"","","",null,null,null,null,null,null,null,null,null,null,null,null,null,null,null,null,null,0]
["февраль",null,null,null,null,0,"","","",null,null,null,null,null,null,null,null,null,null,null,null,null,null,null,null,null,0]
["февраль",null,null,null,null,0,"","","",null,null,null,null,null,null,null,null,null,null,null,null,null,null,null,null,null,0]
["февраль",null,null,null,null,{"$f":"$D772*$E772","v":0},"","","",null,null,null,null,null,null,null,null,null,null,null,null,null,null,null,null,null,0]
[{"$f":"$A772","v":"февраль"},null,null,null,null,0,{"$f":"IF($C773>0,$G772,\"\")","v":""},{"$f":"IF($C773>0,$H772,\"\")","v":""},{"$f":"IF($C773>0,$I772,\"\")","v":""},null,null,null,null,null,null,null,null,null,null,null,null,null,null,null,null,null,0]
["февраль",null,null,null,null,0,"","","",null,null,null,null,null,null,null,null,null,null,null,null,null,null,null,null,null,0]
["февраль",null,null,null,null,0,"","","",null,null,null,null,null,null,null,null,null,null,null,null,null,null,null,null,null,0]
["февраль",null,null,null,null,0,"","","",null,null,null,null,null,null,null,null,null,null,null,null,null,null,null,null,null,0]
["февраль",null,null,null,null,0,"","","",null,null,null,null,null,null,null,null,null,null,null,null,null,null,null,null,null,0]
["февраль",null,null,null,null,0,"","","",null,null,null,null,null,null,null,null,null,null,null,null,null,null,null,null,null,0]
["февраль",null,null,null,null,0,"","","",null,null,null,null,null,null,null,null,null,null,null,null,null,null,null,null,null,0]
["февраль",null,null,null,null,0,"","","",null,null,null,null,null,null,null,null,null,null,null,null,null,null,null,null,null,0]
["февраль",null,null,null,null,0,"","","",null,null,null,null,null,null,null,null,null,null,null,null,null,null,null,null,null,0]
["февраль",null,null,null,null,0,"","","",null,null,null,null,null,null,null,null,null,null,null,null,null,null,null,null,null,0]
["февраль",null,null,null,null,0,"","","",null,null,null,null,null,null,null,null,null,null,null,null,null,null,null,null,null,0]
["февраль",null,null,null,null,0,"","","",null,null,null,null,null,null,null,null,null,null,null,null,null,null,null,null,null,0]
["февраль",null,null,null,null,0,"","","",null,null,null,null,null,null,null,null,null,null,null,null,null,null,null,null,null,0]
["февраль",null,null,null,null,0,"","","",null,null,null,null,null,null,null,null,null,null,null,null,null,null,null,null,null,0]
["февраль",null,null,null,null,0,"","","",null,null,null,null,null,null,null,null,null,null,null,null,null,null,null,null,null,0]
["февраль",null,null,null,null,0,"","","",null,null,null,null,null,null,null,null,null,null,null,null,null,null,null,null,null,0]
["февраль",null,null,null,null,0,"","","",null,null,null,null,null,null,null,null,null,null,null,null,null,null,null,null,null,0]
["февраль",null,null,null,null,0,"","","",null,null,null,null,null,null,null,null,null,null,null,null,null,null,null,null,null,0]
["февраль",null,null,null,null,0,"","","",null,null,null,null,null,null,null,null,null,null,null,null,null,null,null,null,null,0]
["февраль",null,null,null,null,0,"","","",null,null,null,null,null,null,null,null,null,null,null,null,null,null,null,null,null,0]
["февраль",null,null,null,null,0,"","","",null,null,null,null,null,null,null,null,null,null,null,null,null,null,null,null,null,0]
["февраль",null,null,null,null,0,"","","",null,null,null,null,null,null,null,null,null,null,null,null,null,null,null,null,null,0]
["февраль",null,null,null,null,0,"","","",null,null,null,null,null,null,null,null,null,null,null,null,null,null,null,null,null,0]
["февраль",null,null,null,null,0,"","","",null,null,null,null,null,null,null,null,null,null,null,null,null,null,null,null,null,0]
["февраль",null,null,null,null,0,"","","",null,null,null,null,null,null,null,null,null,null,null,null,null,null,null,null,null,0]
["февраль",null,null,null,null,0,"","","",null,null,null,null,null,null,null,null,null,null,null,null,null,null,null,null,null,0]
["февраль",null,null,null,null,0,"","","",null,null,null,null,null,null,null,null,null,null,null,null,null,null,null,null,null,0]
["февраль",null,null,null,null,0,"","","",null,null,null,null,null,null,null,null,null,null,null,null,null,null,null,null,null,0]
["февраль",null,null,null,null,0,"","","",null,null,null,null,null,null,null,null,null,null,null,null,null,null,null,null,null,0]
["февраль",null,null,null,null,0,"","","",null,null,null,null,null,null,null,null,null,null,null,null,null,null,null,null,null,0]
["февраль",null,null,null,null,0,"","","",null,null,null,null,null,null,null,null,null,null,null,null,null,null,null,null,null,0]
["февраль",null,null,null,null,0,"","","",null,null,null,null,null,null,null,null,null,null,null,null,null,null,null,null,null,0]
["февраль",null,null,null,null,0,"","","",null,null,null,null,null,null,null,null,null,null,null,null,null,null,null,null,null,0]
["февраль",null,null,null,null,0,"","","",null,null,null,null,null,null,null,null,null,null,null,null,null,null,null,null,null,0]
["февраль",null,null,null,null,0,"","","",null,null,null,null,null,null,null,null,null,null,null,null,null,null,null,null,null,0]
["февраль",null,null,null,null,0,"","","",null,null,null,null,null,null,null,null,null,null,null,null,null,null,null,null,null,0]
["февраль",null,null,null,null,0,"","","",null,null,null,null,null,null,null,null,null,null,null,null,null,null,null,null,null,0]
["февраль",null,null,null,null,0,"","","",null,null,null,null,null,null,null,null,null,null,null,null,null,null,null,null,null,0]
["февраль",null,null,null,null,0,"","","",null,null,null,null,null,null,null,null,null,null,null,null,null,null,null,null,null,0]
["февраль",null,null,null,null,0,"","","",null,null,null,null,null,null,null,null,null,null,null,null,null,null,null,null,null,0]
["февраль",null,null,null,null,0,"","","",null,null,null,null,null,null,null,null,null,null,null,null,null,null,null,null,null,0]
["февраль",null,null,null,null,0,"","","",null,null,null,null,null,null,null,null,null,null,null,null,null,null,null,null,null,0]
["февраль",null,null,null,null,0,"","","",null,null,null,null,null,null,null,null,null,null,null,null,null,null,null,null,null,0]
["февраль",null,null,null,null,0,"","","",null,null,null,null,null,null,null,null,null,null,null,null,null,null,null,null,null,0]
["февраль",null,null,null,null,0,"","","",null,null,null,null,null,null,null,null,null,null,null,null,null,null,null,null,null,0]
["февраль",null,null,null,null,0,"","","",null,null,null,null,null,null,null,null,null,null,null,null,null,null,null,null,null,0]
["февраль",null,null,null,null,0,"","","",null,null,null,null,null,null,null,null,null,null,null,null,null,null,null,null,null,0]
["февраль",null,null,null,null,0,"","","",null,null,null,null,null,null,null,null,null,null,null,null,null,null,null,null,null,0]
["февраль",null,null,null,null,0,"","","",null,null,null,null,null,null,null,null,null,null,null,null,null,null,null,null,null,0]
["февраль",null,null,null,null,0,"","","",null,null,null,null,null,null,null,null,null,null,null,null,null,null,null,null,null,0]
["февраль",null,null,null,null,0,"","","",null,null,null,null,null,null,null,null,null,null,null,null,null,null,null,null,null,0]
["февраль",null,null,null,null,0,"","","",null,null,null,null,null,null,null,null,null,null,null,null,null,null,null,null,null,0]
["февраль",null,null,null,null,0,"","","",null,null,null,null,null,null,null,null,null,null,null,null,null,null,null,null,null,0]
["февраль",null,null,null,null,0,"","","",null,null,null,null,null,null,null,null,null,null,null,null,null,null,null,null,null,0]
["февраль",null,null,null,null,0,"","","",null,null,null,null,null,null,null,null,null,null,null,null,null,null,null,null,null,0]
["февраль",null,null,null,null,0,"","","",null,null,null,null,null,null,null,null,null,null,null,null,null,null,null,null,null,0]
["февраль",null,null,null,null,0,"","","",null,null,null,null,null,null,null,null,null,null,null,null,null,null,null,null,null,0]
["февраль",null,null,null,null,0,"","","",null,null,null,null,null,null,null,null,null,null,null,null,null,null,null,null,null,0]
["февраль",null,null,null,null,0,"","","",null,null,null,null,null,null,null,null,null,null,null,null,null,null,null,null,null,0]
["февраль",null,null,null,null,0,"","","",null,null,null,null,null,null,null,null,null,null,null,null,null,null,null,null,null,0]
["февраль",null,null,null,null,0,"","","",null,null,null,null,null,null,null,null,null,null,null,null,null,null,null,null,null,0]
["февраль",null,null,null,null,0,"","","",null,null,null,null,null,null,null,null,null,null,null,null,null,null,null,null,null,0]
["февраль",null,null,null,null,0,"","","",null,null,null,null,null,null,null,null,null,null,null,null,null,null,null,null,null,0]
["февраль",null,null,null,null,{"$f":"$D836*$E836","v":0},"","","",null,null,null,null,null,null,null,null,null,null,null,null,null,null,null,null,null,0]
[{"$f":"$A836","v":"февраль"},null,null,null,null,0,{"$f":"IF($C837>0,$G836,\"\")","v":""},{"$f":"IF($C837>0,$H836,\"\")","v":""},{"$f":"IF($C837>0,$I836,\"\")","v":""},null,null,null,null,null,null,null,null,null,null,null,null,null,null,null,null,null,0]
["февраль",null,null,null,null,0,"","","",null,null,null,null,null,null,null,null,null,null,null,null,null,null,null,null,null,0]
["февраль",null,null,null,null,0,"","","",null,null,null,null,null,null,null,null,null,null,null,null,null,null,null,null,null,0]
["февраль",null,null,null,null,0,"","","",null,null,null,null,null,null,null,null,null,null,null,null,null,null,null,null,null,0]
["февраль",null,null,null,null,0,"","","",null,null,null,null,null,null,null,null,null,null,null,null,null,null,null,null,null,0]
["февраль",null,null,null,null,0,"","","",null,null,null,null,null,null,null,null,null,null,null,null,null,null,null,null,null,0]
["февраль",null,null,null,null,0,"","","",null,null,null,null,null,null,null,null,null,null,null,null,null,null,null,null,null,0]
["февраль",null,null,null,null,0,"","","",null,null,null,null,null,null,null,null,null,null,null,null,null,null,null,null,null,0]
["февраль",null,null,null,null,0,"","","",null,null,null,null,null,null,null,null,null,null,null,null,null,null,null,null,null,0]
["февраль",null,null,null,null,0,"","","",null,null,null,null,null,null,null,null,null,null,null,null,null,null,null,null,null,0]
["февраль",null,null,null,null,0,"","","",null,null,null,null,null,null,null,null,null,null,null,null,null,null,null,null,null,0]
["февраль",null,null,null,null,0,"","","",null,null,null,null,null,null,null,null,null,null,null,null,null,null,null,null,null,0]
["февраль",null,null,null,null,0,"","","",null,null,null,null,null,null,null,null,null,null,null,null,null,null,null,null,null,0]
["февраль",null,null,null,null,0,"","","",null,null,null,null,null,null,null,null,null,null,null,null,null,null,null,null,null,0]
["февраль",null,null,null,null,0,"","","",null,null,null,null,null,null,null,null,null,null,null,null,null,null,null,null,null,0]
["февраль",null,null,null,null,0,"","","",null,null,null,null,null,null,null,null,null,null,null,null,null,null,null,null,null,0]
["февраль",null,null,null,null,0,"","","",null,null,null,null,null,null,null,null,null,null,null,null,null,null,null,null,null,0]
["февраль",null,null,null,null,0,"","","",null,null,null,null,null,null,null,null,null,null,null,null,null,null,null,null,null,0]
["февраль",null,null,null,null,0,"","","",null,null,null,null,null,null,null,null,null,null,null,null,null,null,null,null,null,0]
["февраль",null,null,null,null,0,"","","",null,null,null,null,null,null,null,null,null,null,null,null,null,null,null,null,null,0]
["февраль",null,null,null,null,0,"","","",null,null,null,null,null,null,null,null,null,null,null,null,null,null,null,null,null,0]
["февраль",null,null,null,null,0,"","","",null,null,null,null,null,null,null,null,null,null,null,null,null,null,null,null,null,0]
["февраль",null,null,null,null,0,"","","",null,null,null,null,null,null,null,null,null,null,null,null,null,null,null,null,null,0]
["февраль",null,null,null,null,0,"","","",null,null,null,null,null,null,null,null,null,null,null,null,null,null,null,null,null,0]
["февраль",null,null,null,null,0,"","","",null,null,null,null,null,null,null,null,null,null,null,null,null,null,null,null,null,0]
["февраль",null,null,null,null,0,"","","",null,null,null,null,null,null,null,null,null,null,null,null,null,null,null,null,null,0]
["февраль",null,null,null,null,0,"","","",null,null,null,null,null,null,null,null,null,null,null,null,null,null,null,null,null,0]
["февраль",null,null,null,null,0,"","","",null,null,null,null,null,null,null,null,null,null,null,null,null,null,null,null,null,0]
["февраль",null,null,null,null,0,"","","",null,null,null,null,null,null,null,null,null,null,null,null,null,null,null,null,null,0]
["февраль",null,null,null,null,0,"","","",null,null,null,null,null,null,null,null,null,null,null,null,null,null,null,null,null,0]
["февраль",null,null,null,null,0,"","","",null,null,null,null,null,null,null,null,null,null,null,null,null,null,null,null,null,0]
["февраль",null,null,null,null,0,"","","",null,null,null,null,null,null,null,null,null,null,null,null,null,null,null,null,null,0]
["февраль",null,null,null,null,0,"","","",null,null,null,null,null,null,null,null,null,null,null,null,null,null,null,null,null,0]
["февраль",null,null,null,null,0,"","","",null,null,null,null,null,null,null,null,null,null,null,null,null,null,null,null,null,0]
["февраль",null,null,null,null,0,"","","",null,null,null,null,null,null,null,null,null,null,null,null,null,null,null,null,null,0]
["февраль",null,null,null,null,0,"","","",null,null,null,null,null,null,null,null,null,null,null,null,null,null,null,null,null,0]
["февраль",null,null,null,null,0,"","","",null,null,null,null,null,null,null,null,null,null,null,null,null,null,null,null,null,0]
["февраль",null,null,null,null,0,"","","",null,null,null,null,null,null,null,null,null,null,null,null,null,null,null,null,null,0]
["февраль",null,null,null,null,0,"","","",null,null,null,null,null,null,null,null,null,null,null,null,null,null,null,null,null,0]
["февраль",null,null,null,null,0,"","","",null,null,null,null,null,null,null,null,null,null,null,null,null,null,null,null,null,0]
["февраль",null,null,null,null,0,"","","",null,null,null,null,null,null,null,null,null,null,null,null,null,null,null,null,null,0]
["февраль",null,null,null,null,0,"","","",null,null,null,null,null,null,null,null,null,null,null,null,null,null,null,null,null,0]
["февраль",null,null,null,null,0,"","","",null,null,null,null,null,null,null,null,null,null,null,null,null,null,null,null,null,0]
["февраль",null,null,null,null,0,"","","",null,null,null,null,null,null,null,null,null,null,null,null,null,null,null,null,null,0]
["февраль",null,null,null,null,0,"","","",null,null,null,null,null,null,null,null,null,null,null,null,null,null,null,null,null,0]
["февраль",null,null,null,null,0,"","","",null,null,null,null,null,null,null,null,null,null,null,null,null,null,null,null,null,0]
["февраль",null,null,null,null,0,"","","",null,null,null,null,null,null,null,null,null,null,null,null,null,null,null,null,null,0]
["февраль",null,null,null,null,0,"","","",null,null,null,null,null,null,null,null,null,null,null,null,null,null,null,null,null,0]
["февраль",null,null,null,null,0,"","","",null,null,null,null,null,null,null,null,null,null,null,null,null,null,null,null,null,0]
["февраль",null,null,null,null,0,"","","",null,null,null,null,null,null,null,null,null,null,null,null,null,null,null,null,null,0]
["февраль",null,null,null,null,0,"","","",null,null,null,null,null,null,null,null,null,null,null,null,null,null,null,null,null,0]
["февраль",null,null,null,null,0,"","","",null,null,null,null,null,null,null,null,null,null,null,null,null,null,null,null,null,0]
["февраль",null,null,null,null,0,"","","",null,null,null,null,null,null,null,null,null,null,null,null,null,null,null,null,null,0]
["февраль",null,null,null,null,0,"","","",null,null,null,null,null,null,null,null,null,null,null,null,null,null,null,null,null,0]
["февраль",null,null,null,null,0,"","","",null,null,null,null,null,null,null,null,null,null,null,null,null,null,null,null,null,0]
["февраль",null,null,null,null,0,"","","",null,null,null,null,null,null,null,null,null,null,null,null,null,null,null,null,null,0]
["февраль",null,null,null,null,0,"","","",null,null,null,null,null,null,null,null,null,null,null,null,null,null,null,null,null,0]
["февраль",null,null,null,null,0,"","","",null,null,null,null,null,null,null,null,null,null,null,null,null,null,null,null,null,0]
["февраль",null,null,null,null,0,"","","",null,null,null,null,null,null,null,null,null,null,null,null,null,null,null,null,null,0]
["февраль",null,null,null,null,0,"","","",null,null,null,null,null,null,null,null,null,null,null,null,null,null,null,null,null,0]
["февраль",null,null,null,null,0,"","","",null,null,null,null,null,null,null,null,null,null,null,null,null,null,null,null,null,0]
["февраль",null,null,null,null,0,"","","",null,null,null,null,null,null,null,null,null,null,null,null,null,null,null,null,null,0]
["февраль",null,null,null,null,0,"","","",null,null,null,null,null,null,null,null,null,null,null,null,null,null,null,null,null,0]
["февраль",null,null,null,null,{"$f":"$D900*$E900","v":0},"","","",null,null,null,null,null,null,null,null,null,null,null,null,null,null,null,null,null,0]
[{"$f":"$A900","v":"февраль"},null,null,null,null,0,{"$f":"IF($C901>0,$G900,\"\")","v":""},{"$f":"IF($C901>0,$H900,\"\")","v":""},{"$f":"IF($C901>0,$I900,\"\")","v":""},null,null,null,null,null,null,null,null,null,null,null,null,null,null,null,null,null,0]
["февраль",null,null,null,null,0,"","","",null,null,null,null,null,null,null,null,null,null,null,null,null,null,null,null,null,0]
["февраль",null,null,null,null,0,"","","",null,null,null,null,null,null,null,null,null,null,null,null,null,null,null,null,null,0]
["февраль",null,null,null,null,0,"","","",null,null,null,null,null,null,null,null,null,null,null,null,null,null,null,null,null,0]
["февраль",null,null,null,null,0,"","","",null,null,null,null,null,null,null,null,null,null,null,null,null,null,null,null,null,0]
["февраль",null,null,null,null,0,"","","",null,null,null,null,null,null,null,null,null,null,null,null,null,null,null,null,null,0]
["февраль",null,null,null,null,0,"","","",null,null,null,null,null,null,null,null,null,null,null,null,null,null,null,null,null,0]
["февраль",null,null,null,null,0,"","","",null,null,null,null,null,null,null,null,null,null,null,null,null,null,null,null,null,0]
["февраль",null,null,null,null,0,"","","",null,null,null,null,null,null,null,null,null,null,null,null,null,null,null,null,null,0]
["февраль",null,null,null,null,0,"","","",null,null,null,null,null,null,null,null,null,null,null,null,null,null,null,null,null,0]
["февраль",null,null,null,null,0,"","","",null,null,null,null,null,null,null,null,null,null,null,null,null,null,null,null,null,0]
["февраль",null,null,null,null,0,"","","",null,null,null,null,null,null,null,null,null,null,null,null,null,null,null,null,null,0]
["февраль",null,null,null,null,0,"","","",null,null,null,null,null,null,null,null,null,null,null,null,null,null,null,null,null,0]
["февраль",null,null,null,null,0,"","","",null,null,null,null,null,null,null,null,null,null,null,null,null,null,null,null,null,0]
["февраль",null,null,null,null,0,"","","",null,null,null,null,null,null,null,null,null,null,null,null,null,null,null,null,null,0]
["февраль",null,null,null,null,0,"","","",null,null,null,null,null,null,null,null,null,null,null,null,null,null,null,null,null,0]
["февраль",null,null,null,null,0,"","","",null,null,null,null,null,null,null,null,null,null,null,null,null,null,null,null,null,0]
["февраль",null,null,null,null,0,"","","",null,null,null,null,null,null,null,null,null,null,null,null,null,null,null,null,null,0]
["февраль",null,null,null,null,0,"","","",null,null,null,null,null,null,null,null,null,null,null,null,null,null,null,null,null,0]
["февраль",null,null,null,null,0,"","","",null,null,null,null,null,null,null,null,null,null,null,null,null,null,null,null,null,0]
["февраль",null,null,null,null,0,"","","",null,null,null,null,null,null,null,null,null,null,null,null,null,null,null,null,null,0]
["февраль",null,null,null,null,0,"","","",null,null,null,null,null,null,null,null,null,null,null,null,null,null,null,null,null,0]
["февраль",null,null,null,null,0,"","","",null,null,null,null,null,null,null,null,null,null,null,null,null,null,null,null,null,0]
["февраль",null,null,null,null,0,"","","",null,null,null,null,null,null,null,null,null,null,null,null,null,null,null,null,null,0]
["февраль",null,null,null,null,0,"","","",null,null,null,null,null,null,null,null,null,null,null,null,null,null,null,null,null,0]
["февраль",null,null,null,null,0,"","","",null,null,null,null,null,null,null,null,null,null,null,null,null,null,null,null,null,0]
["февраль",null,null,null,null,0,"","","",null,null,null,null,null,null,null,null,null,null,null,null,null,null,null,null,null,0]
["февраль",null,null,null,null,0,"","","",null,null,null,null,null,null,null,null,null,null,null,null,null,null,null,null,null,0]
["февраль",null,null,null,null,0,"","","",null,null,null,null,null,null,null,null,null,null,null,null,null,null,null,null,null,0]
["февраль",null,null,null,null,0,"","","",null,null,null,null,null,null,null,null,null,null,null,null,null,null,null,null,null,0]
["февраль",null,null,null,null,0,"","","",null,null,null,null,null,null,null,null,null,null,null,null,null,null,null,null,null,0]
["февраль",null,null,null,null,0,"","","",null,null,null,null,null,null,null,null,null,null,null,null,null,null,null,null,null,0]
["февраль",null,null,null,null,0,"","","",null,null,null,null,null,null,null,null,null,null,null,null,null,null,null,null,null,0]
["февраль",null,null,null,null,0,"","","",null,null,null,null,null,null,null,null,null,null,null,null,null,null,null,null,null,0]
["февраль",null,null,null,null,0,"","","",null,null,null,null,null,null,null,null,null,null,null,null,null,null,null,null,null,0]
["февраль",null,null,null,null,0,"","","",null,null,null,null,null,null,null,null,null,null,null,null,null,null,null,null,null,0]
["февраль",null,null,null,null,0,"","","",null,null,null,null,null,null,null,null,null,null,null,null,null,null,null,null,null,0]
["февраль",null,null,null,null,0,"","","",null,null,null,null,null,null,null,null,null,null,null,null,null,null,null,null,null,0]
["февраль",null,null,null,null,0,"","","",null,null,null,null,null,null,null,null,null,null,null,null,null,null,null,null,null,0]
["февраль",null,null,null,null,0,"","","",null,null,null,null,null,null,null,null,null,null,null,null,null,null,null,null,null,0]
["февраль",null,null,null,null,0,"","","",null,null,null,null,null,null,null,null,null,null,null,null,null,null,null,null,null,0]
["февраль",null,null,null,null,0,"","","",null,null,null,null,null,null,null,null,null,null,null,null,null,null,null,null,null,0]
["февраль",null,null,null,null,0,"","","",null,null,null,null,null,null,null,null,null,null,null,null,null,null,null,null,null,0]
["февраль",null,null,null,null,0,"","","",null,null,null,null,null,null,null,null,null,null,null,null,null,null,null,null,null,0]
["февраль",null,null,null,null,0,"","","",null,null,null,null,null,null,null,null,null,null,null,null,null,null,null,null,null,0]
["февраль",null,null,null,null,0,"","","",null,null,null,null,null,null,null,null,null,null,null,null,null,null,null,null,null,0]
["февраль",null,null,null,null,0,"","","",null,null,null,null,null,null,null,null,null,null,null,null,null,null,null,null,null,0]
["февраль",null,null,null,null,0,"","","",null,null,null,null,null,null,null,null,null,null,null,null,null,null,null,null,null,0]
["февраль",null,null,null,null,0,"","","",null,null,null,null,null,null,null,null,null,null,null,null,null,null,null,null,null,0]
["февраль",null,null,null,null,0,"","","",null,null,null,null,null,null,null,null,null,null,null,null,null,null,null,null,null,0]
["февраль",null,null,null,null,0,"","","",null,null,null,null,null,null,null,null,null,null,null,null,null,null,null,null,null,0]
["февраль",null,null,null,null,0,"","","",null,null,null,null,null,null,null,null,null,null,null,null,null,null,null,null,null,0]
["февраль",null,null,null,null,0,"","","",null,null,null,null,null,null,null,null,null,null,null,null,null,null,null,null,null,0]
["февраль",null,null,null,null,0,"","","",null,null,null,null,null,null,null,null,null,null,null,null,null,null,null,null,null,0]
["февраль",null,null,null,null,0,"","","",null,null,null,null,null,null,null,null,null,null,null,null,null,null,null,null,null,0]
["февраль",null,null,null,null,0,"","","",null,null,null,null,null,null,null,null,null,null,null,null,null,null,null,null,null,0]
["февраль",null,null,null,null,0,"","","",null,null,null,null,null,null,null,null,null,null,null,null,null,null,null,null,null,0]
["февраль",null,null,null,null,0,"","","",null,null,null,null,null,null,null,null,null,null,null,null,null,null,null,null,null,0]
["февраль",null,null,null,null,0,"","","",null,null,null,null,null,null,null,null,null,null,null,null,null,null,null,null,null,0]
["февраль",null,null,null,null,0,"","","",null,null,null,null,null,null,null,null,null,null,null,null,null,null,null,null,null,0]
["февраль",null,null,null,null,0,"","","",null,null,null,null,null,null,null,null,null,null,null,null,null,null,null,null,null,0]
["февраль",null,null,null,null,0,"","","",null,null,null,null,null,null,null,null,null,null,null,null,null,null,null,null,null,0]
["февраль",null,null,null,null,0,"","","",null,null,null,null,null,null,null,null,null,null,null,null,null,null,null,null,null,0]
["февраль",null,null,null,null,{"$f":"$D964*$E964","v":0},"","","",null,null,null,null,null,null,null,null,null,null,null,null,null,null,null,null,null,0]
[{"$f":"$A964","v":"февраль"},null,null,null,null,0,{"$f":"IF($C965>0,$G964,\"\")","v":""},{"$f":"IF($C965>0,$H964,\"\")","v":""},{"$f":"IF($C965>0,$I964,\"\")","v":""},null,null,null,null,null,null,null,null,null,null,null,null,null,null,null,null,null,0]
["февраль",null,null,null,null,0,"","","",null,null,null,null,null,null,null,null,null,null,null,null,null,null,null,null,null,0]
["февраль",null,null,null,null,0,"","","",null,null,null,null,null,null,null,null,null,null,null,null,null,null,null,null,null,0]
["февраль",null,null,null,null,0,"","","",null,null,null,null,null,null,null,null,null,null,null,null,null,null,null,null,null,0]
["февраль",null,null,null,null,0,"","","",null,null,null,null,null,null,null,null,null,null,null,null,null,null,null,null,null,0]
["февраль",null,null,null,null,0,"","","",null,null,null,null,null,null,null,null,null,null,null,null,null,null,null,null,null,0]
["февраль",null,null,null,null,0,"","","",null,null,null,null,null,null,null,null,null,null,null,null,null,null,null,null,null,0]
["февраль",null,null,null,null,0,"","","",null,null,null,null,null,null,null,null,null,null,null,null,null,null,null,null,null,0]
["февраль",null,null,null,null,0,"","","",null,null,null,null,null,null,null,null,null,null,null,null,null,null,null,null,null,0]
["февраль",null,null,null,null,0,"","","",null,null,null,null,null,null,null,null,null,null,null,null,null,null,null,null,null,0]
["февраль",null,null,null,null,0,"","","",null,null,null,null,null,null,null,null,null,null,null,null,null,null,null,null,null,0]
["февраль",null,null,null,null,0,"","","",null,null,null,null,null,null,null,null,null,null,null,null,null,null,null,null,null,0]
["февраль",null,null,null,null,0,"","","",null,null,null,null,null,null,null,null,null,null,null,null,null,null,null,null,null,0]
["февраль",null,null,null,null,0,"","","",null,null,null,null,null,null,null,null,null,null,null,null,null,null,null,null,null,0]
["февраль",null,null,null,null,0,"","","",null,null,null,null,null,null,null,null,null,null,null,null,null,null,null,null,null,0]
["февраль",null,null,null,null,0,"","","",null,null,null,null,null,null,null,null,null,null,null,null,null,null,null,null,null,0]
["февраль",null,null,null,null,0,"","","",null,null,null,null,null,null,null,null,null,null,null,null,null,null,null,null,null,0]
["февраль",null,null,null,null,0,"","","",null,null,null,null,null,null,null,null,null,null,null,null,null,null,null,null,null,0]
["февраль",null,null,null,null,0,"","","",null,null,null,null,null,null,null,null,null,null,null,null,null,null,null,null,null,0]
["февраль",null,null,null,null,0,"","","",null,null,null,null,null,null,null,null,null,null,null,null,null,null,null,null,null,0]
["февраль",null,null,null,null,0,"","","",null,null,null,null,null,null,null,null,null,null,null,null,null,null,null,null,null,0]
["февраль",null,null,null,null,0,"","","",null,null,null,null,null,null,null,null,null,null,null,null,null,null,null,null,null,0]
["февраль",null,null,null,null,0,"","","",null,null,null,null,null,null,null,null,null,null,null,null,null,null,null,null,null,0]
["февраль",null,null,null,null,0,"","","",null,null,null,null,null,null,null,null,null,null,null,null,null,null,null,null,null,0]
["февраль",null,null,null,null,0,"","","",null,null,null,null,null,null,null,null,null,null,null,null,null,null,null,null,null,0]
["февраль",null,null,null,null,0,"","","",null,null,null,null,null,null,null,null,null,null,null,null,null,null,null,null,null,0]
["февраль",null,null,null,null,0,"","","",null,null,null,null,null,null,null,null,null,null,null,null,null,null,null,null,null,0]
["февраль",null,null,null,null,0,"","","",null,null,null,null,null,null,null,null,null,null,null,null,null,null,null,null,null,0]
["февраль",null,null,null,null,0,"","","",null,null,null,null,null,null,null,null,null,null,null,null,null,null,null,null,null,0]
["февраль",null,null,null,null,0,"","","",null,null,null,null,null,null,null,null,null,null,null,null,null,null,null,null,null,0]
["февраль",null,null,null,null,0,"","","",null,null,null,null,null,null,null,null,null,null,null,null,null,null,null,null,null,0]
["февраль",null,null,null,null,0,"","","",null,null,null,null,null,null,null,null,null,null,null,null,null,null,null,null,null,0]
["февраль",null,null,null,null,0,"","","",null,null,null,null,null,null,null,null,null,null,null,null,null,null,null,null,null,0]
["февраль",null,null,null,null,0,"","","",null,null,null,null,null,null,null,null,null,null,null,null,null,null,null,null,null,0]
["февраль",null,null,null,null,0,"","","",null,null,null,null,null,null,null,null,null,null,null,null,null,null,null,null,null,0]
["февраль",null,null,null,null,0,"","","",null,null,null,null,null,null,null,null,null,null,null,null,null,null,null,null,null,0]
["февраль",null,null,null,null,0,"","","",null,null,null,null,null,null,null,null,null,null,null,null,null,null,null,null,null,0]
["февраль",null,null,null,null,0,"","","",null,null,null,null,null,null,null,null,null,null,null,null,null,null,null,null,null,0]

{"sheet":"Справка по расходу запчастей","index":2,"n_rows":47,"n_cols":5,"rows_kept":47,"cut":false,"hidden":false,"merged":[[5,2,5,3],[7,2,7,3],[11,2,11,3],[9,2,9,4]]}
[]
[null,"Организация"]
[]
[null,"Структурное подразделение"]
[]
[null,"Период","февраль"]
[]
[null,"Гос номер АТС"]
[]
[null,"Поставщик"]
[]
[null,"№ приходного документа"]
[]
[null,"Гос. номер АТС","Поставщик","№ приходного документа","Сумма без учета НДС"]
[null,{"$f":"IFERROR(INDEX('Расход запчастей'!B3:B1001,SMALL(IF(TEXT($C$6,\"[$-F419]ММММ;@\")=TEXT('Расход запчастей'!A3:A1001,\"[$-F419]ММММ;@\"),ROW('Расход запчастей'!B3:B1001)-2,\"\"),ROW()-14)),\"\")","v":"А 111 АА"}]
[null,"Б 222 ББ"]
[null,"В 333 ВВ"]
[null,0]
[null,0]
[null,0]
[null,0]
[null,0]
[null,0]
[null,0]
[null,0]
[null,0]
[null,0]
[null,0]
[null,0]
[null,0]
[null,0]
[null,0]
[null,0]
[null,0]
[null,0]
[null,0]
[null,0]
[null,0]
[null,0]
[]
[null,"Итого"]
[]
[null,"Главный бухгалтер"]
[]
[null,"Главный механик"]
[]
[null,"Диспетчер"]